Cogmind - Beta 11.1 @@@ ROGUE MODE // 2022.08.14 @ 18:33:56 Player: Pogmind Result: Crushed by singularity! Performance ------------- Evolutions (9) 4500 Regions Visited (39) 7800 Robots Destroyed (1108) 5540 Value Destroyed (63913) 63913 Prototype IDs (301) 6020 Alien Tech Used (15) 3000 Bonus (73480) 73480 TOTAL SCORE: 164253 Bonus ------- Triggered High Security 500 High Alert Combat Kills 21639 Follower Combat Kills 8027 Entered Garrisons 1800 Used RIF Installer 4500 Network Hubs Disabled 600 Aligned with FarCom 300 Built Enhanced Grunts 300 A7 Reached Mainframe 300 Met R17 at Cetus 500 Scanned by Researcher 500 Destroyed MAIN.C Guards 500 Met MAIN.C 5000 Destroyed MAIN.C Shell 5000 Destroyed MAIN.C 10000 Met Architect 300 Destroyed A8 300 Destroyed A6 400 Destroyed Architect 15000 Friendly Fire -1986 Cogmind --------- Core Integrity 0/1600 Matter 297/425 Energy 100/100 System Corruption 0% Temperature Cool (0) Movement Core (50) Location -1/Access_0 Parts ------- > --- POWER (6) -------- (None) > --- PROPULSION (6) --- (None) > --- UTILITY (9) ------ (None) > --- WEAPON (4) ------- (None) > --- INVENTORY (5) ---- High-density Centrium Heavy Treads Sigix Shearcannon Peak State ------------ > --- POWER ------------ Singularity Reactor Singularity Reactor > --- PROPULSION ------- Advanced Heavy Siege Treads Advanced Heavy Siege Treads High-density Centrium Heavy Treads > --- UTILITY ---------- Experimental Cooling System Advanced Coolant Injector Huge Storage Unit Experimental Core Analyzer Improved Armor Integrity Analyzer Experimental Weapon Cycler Heavy Regenerative Plating 7V-RTL's Ultimate Field > --- WEAPON ----------- Omega Cannon Sigix Broadsword > --- INVENTORY -------- Zero-point Reactor Zero-point Reactor Zero-point Reactor Zero-point Reactor Zero-point Reactor Vortex Chain Reactor Vortex Chain Reactor Vortex Chain Reactor High-density Centrium Heavy Treads Experimental Power Amplifier Superbattery Experimental Targeting Computer Experimental Weapon Cycler Graphene Brace AEGIS Remote Shield High-powered Transdimensional Reconstructor Improved Potential Cannon Sigix Shearcannon Hypervelocity Multirail [Rating: 265] Favorites ----------- Power Reinforced Quantum Reactor Engine Heavy Ion Engine Power Core Reinforced Fission Core Reactor Reinforced Quantum Reactor Propulsion Armored Heavy Treads Treads Armored Heavy Treads Leg Biometal Leg Wheel Armored Wheel Hover Unit Improved Antigrav System Flight Unit Improved VTOL Module Utility Huge Storage Unit Device Improved Hardlight Generator Storage Huge Storage Unit Processor Advanced Signal Interpreter Hackware Relay Coupler [Grunt] Protection Advanced Powered Armor Artifact Spacefold Activator Weapon Sigix Broadsword Energy Gun Heavy Beamcaster Energy Cannon Plasma Cannon Ballistic Gun 8R-AWN's Boregun Ballistic Cannon Hypervelocity Gauss Cannon Launcher Containment Facilitator Special Weapon Remote Datajack Impact Weapon Power Maul Slashing Weapon Sigix Broadsword Piercing Weapon Plasma Lance Special Melee Weapon Improved Datajack Build | -11 -10 -10 -9 -9 -9 -8 -8 -8 -8 -8 -7 -7 -7 -7 -7 -7 -6 -6 -6 -6 -6 -6 -5 -5 -4 -4 -4 -4 -4 -4 -3 -3 -3 -3 -2 -2 -1 -1 -1 ------- Run | Scr Mat Min Mat Min Exi Min Mat Gar Mat Gar Fac Was Fac Gar Fac Gar Fac Was Fac Gar Fac Gar Fac Gar Fac Gar Ext Cet Arc Hub Res Qua Sec Gar Res Tes Acc Com Ac0 Slots Evolved 18 | . . . 2 . . . 2 . . . 2 . . . . . 2 . . . . . 2 . 2 . . . . . 2 . . . 2 . 2 . . Power 5 | . . . . . . . . . . . . . . . . . . . . . . . 1 . . . . . . . . . . . 2 . 2 . . Propulsion 4 | . . . . . . . 2 . . . . . . . . . . . . . . . . . 2 . . . . . . . . . . . . . . Utility 7 | . . . 2 . . . . . . . 2 . . . . . 2 . . . . . 1 . . . . . . . . . . . . . . . . Weapon 2 | . . . . . . . . . . . . . . . . . . . . . . . . . . . . . . . 2 . . . . . . . . Parts Attached 1605 | 6 4 4 49 13 73 24 48 15 39 42 32 16 5 46 16 47 27 5 4 49 11 41 40 62 18 42 67 20 12 32 46 114 116 33 41 104 64 141 37 Power 89 | 1 . 1 3 . 5 3 1 . . . . . . 3 1 . 1 . . . . . 1 5 4 2 2 2 . 2 . 7 4 . 8 8 8 17 . Engine 19 | 1 . 1 2 . 3 2 . . . . . . . 3 . . . . . . . . . 5 . . . . . . . . . . . 1 . 1 . Core 14 | . . . 1 . . 1 . . . . . . . . . . . . . . . . 1 . 2 2 2 1 . 2 . 1 1 . . . . . . Reactor 56 | . . . . . 2 . 1 . . . . . . . 1 . 1 . . . . . . . 2 . . 1 . . . 6 3 . 8 7 8 16 . Propulsion 128 | 2 . 1 7 2 5 3 6 4 4 7 . 3 . 1 3 8 2 2 2 . . . 2 . . 1 14 3 . 1 3 4 10 6 . 11 7 4 . Treads 90 | 2 . . 7 2 5 3 3 2 . 1 . 3 . 1 . 5 . 2 2 . . . 2 . . 1 14 3 . 1 3 3 8 2 . 5 7 3 . Leg 1 | . . . . . . . . . . . . . . . . . . . . . . . . . . . . . . . . . . . . . . 1 . Wheel 34 | . . 1 . . . . 3 2 3 6 . . . . 3 3 2 . . . . . . . . . . . . . . . 2 4 . 5 . . . Hover 2 | . . . . . . . . . . . . . . . . . . . . . . . . . . . . . . . . 1 . . . 1 . . . Flight 1 | . . . . . . . . . 1 . . . . . . . . . . . . . . . . . . . . . . . . . . . . . . Utility 819 | 1 2 1 17 3 51 13 20 6 19 19 22 4 3 17 4 20 8 2 2 24 4 17 14 24 7 21 24 6 8 18 29 72 67 15 25 59 34 92 25 Device 469 | . . . 3 1 6 4 3 3 5 3 13 2 1 12 . 9 1 1 . 10 1 2 6 9 4 5 18 . 6 10 15 62 48 8 24 45 26 79 24 Storage 55 | 1 1 . 3 . 2 3 4 2 2 5 1 . . 2 . 2 . . . 2 . 2 . 2 . 2 1 . . 6 . 4 . 2 . 1 . 5 . Processor 16 | . . . . . . . . . . 1 1 . . . . . . . . . . . . . . . . . 1 1 . . 2 . . 1 3 5 1 Hackware 139 | . . . . . 33 . 4 . 6 4 3 1 2 3 2 6 4 1 1 8 1 11 5 13 2 7 . . . . 6 . 4 4 1 4 3 . . Protection 131 | . 1 1 11 2 10 6 9 1 6 6 4 1 . . 2 3 3 . 1 4 2 2 3 . 1 7 5 6 1 1 8 6 11 . . 2 2 3 . Artifact 9 | . . . . . . . . . . . . . . . . . . . . . . . . . . . . . . . . . 2 1 . 6 . . . Weapon 569 | 2 2 1 22 8 12 5 21 5 16 16 10 9 2 25 8 19 16 1 . 25 7 24 23 33 7 18 27 9 4 11 14 31 35 12 8 26 15 28 12 Energy Gun 30 | . . . 4 . . . . . . . . 2 1 12 . . . . . . . . . . . 4 5 1 . . . . . . . 1 . . . Energy Cannon 106 | . . . 4 4 1 . 12 3 4 7 4 2 . 2 1 7 2 . . 2 . . . 2 2 1 1 1 . 1 . . 4 1 4 11 2 9 12 Ballistic Gun 69 | 2 1 . 4 . 3 2 . 1 2 2 . 3 . . . 3 5 . . 5 . . . . . . 2 2 2 4 6 9 2 . . 3 3 3 . Ballistic Cannon 130 | . . . . . . . . . . . . . . . 1 4 1 . . 9 3 8 12 16 3 5 6 4 2 4 4 14 16 6 . . 5 7 . Launcher 31 | . 1 . 3 4 2 1 2 1 1 1 3 . . 3 1 1 . . . . . . . 1 . . . . . . 2 1 . 2 . . . 1 . Special Weapon 108 | . . . 2 . 2 1 2 . 2 . . 1 1 6 2 4 6 1 . 5 3 7 8 8 2 5 3 . . 1 1 2 10 3 4 11 2 3 . Impact Weapon 6 | . . . . . . . . . . . . . . . . . . . . . . . . . . . 1 1 . 1 1 2 . . . . . . . Slashing Weapon 82 | . . 1 5 . 4 1 5 . 5 3 2 1 . 2 3 . 2 . . 4 1 9 3 6 . 3 9 . . . . 3 3 . . . 3 4 . Piercing Weapon 1 | . . . . . . . . . . . . . . . . . . . . . . . . . . . . . . . . . . . . . . 1 . Special Melee Weapon 6 | . . . . . . . . . 2 3 1 . . . . . . . . . . . . . . . . . . . . . . . . . . . . Unidentified Prototypes 64 | . . . 1 . 8 5 . . 1 . 1 . . . . . . . . . . . . . . . . 4 . 3 . 8 7 . . 16 . 10 . Corrupted Parts 2 | . . . . . . . . . . . . . . . . . . . . . . . . . . . . 2 . . . . . . . . . . . System Corruption 10 | . . . . . . . . . . . . . . . . . . . . . . . . . . . . 10 . . . . . . . . . . . Parts Lost 60 | . . 2 8 2 5 5 2 . 1 2 . . . 2 1 3 . . . 1 . . . 3 2 1 4 . . . 2 3 9 2 . . . . . Power 5 | . . 1 1 . 1 . . . . . . . . . . . . . . . . . . . 1 . . . . . . . 1 . . . . . . Propulsion 15 | . . 1 3 . 1 2 1 . 1 1 . . . . 1 1 . . . . . . . . . . 2 . . . . . 1 . . . . . . Utility 34 | . . . 4 2 2 3 1 . . . . . . 1 . 1 . . . 1 . . . 3 1 1 2 . . . 2 3 6 1 . . . . . Weapon 6 | . . . . . 1 . . . . 1 . . . 1 . 1 . . . . . . . . . . . . . . . . 1 1 . . . . . Highest Loss Streak 6 | . . 1 3 2 5 4 1 . 1 1 . . . 1 1 1 . . . 1 . . . 1 1 1 1 . . . 1 1 6 2 . . . . . To Critical Strikes 4 | . . . . . 2 . . . . . . . . . 1 . . . . . . . . . . . . . . . . . 1 . . . . . . Average Slot Usage (%) 79 | . 99 99 99 100 89 82 84 86 83 90 91 82 76 79 77 88 91 83 79 81 78 80 78 80 71 79 84 82 72 73 79 77 72 74 71 69 69 63 58 Engine 1 | . 14 14 4 11 9 11 7 . . . . . . 4 3 . . . . . . . . 5 4 . . . . . . . . . . . . . . Core 1 | . . . 6 . . . . . . . . . . . . . . . . . . . 4 3 2 9 10 9 10 9 9 1 . . . . . . . Reactor 6 | . . . . . 1 . 1 9 9 9 7 7 7 2 3 7 5 6 6 6 6 6 5 . 2 . . . . . . 7 8 9 14 12 15 11 7 Treads 14 | . 28 21 21 22 22 13 8 21 9 10 . 9 15 15 11 26 . 2 13 13 13 13 11 11 10 14 24 19 15 14 13 13 13 16 8 8 10 11 11 Wheel 3 | . . 5 . . . . 17 3 17 21 30 11 . . 3 1 25 21 . . . . . . . . . . . . . . . . 8 7 3 . . Device 10 | . . . 9 11 4 1 5 15 . 8 6 7 6 21 20 10 12 6 13 18 13 7 8 21 10 8 16 19 9 17 10 11 8 4 7 7 8 12 12 Storage 6 | . 14 14 11 11 11 11 9 9 9 9 7 7 7 7 7 7 6 6 6 8 6 6 5 5 5 5 5 5 5 5 4 4 4 4 4 4 4 4 3 Processor 2 | . . . . . . . . . . . 6 7 7 3 . . . . . . . . . . . . . . . 5 4 4 4 4 4 4 11 10 11 Hackware 8 | . . . . . . . 8 . 13 1 8 12 14 6 8 4 12 13 15 10 13 25 21 17 22 20 13 10 9 3 15 14 12 14 8 8 . . . Protection 7 | . 13 14 23 22 22 22 7 8 7 10 5 2 . . 1 12 12 13 9 9 11 6 6 . 2 7 4 6 9 5 1 3 3 4 4 4 4 3 3 Energy Cannon 2 | . . . 4 18 . . 9 16 8 13 13 2 . . 13 4 . . . . . . . . . . . . . . . . . . 3 2 . 1 3 Ballistic Gun 2 | . 27 23 8 . . 15 . 1 . . . 6 . . . . 6 . . 2 . . . . . . 1 5 7 1 7 5 . . . 1 3 1 . Ballistic Cannon 2 | . . . . . . . . . . . . . . . . 3 . . . 5 9 6 6 4 7 4 1 3 2 7 9 3 6 4 . . . 1 . Special Weapon 1 | . . . . . 7 1 2 . 1 . . 2 5 . . 4 3 6 6 1 2 2 2 2 2 . . . . . . . 1 2 . 1 3 . . Slashing Weapon 3 | . . 4 5 . 9 4 5 . 7 2 1 . . . 1 . 1 6 6 1 . 3 . 2 . 2 . . . . . 3 3 4 4 4 3 3 3 Naked Turns 10 | . . . . . . . . . . . . . . . . . . . . . . . . . . . . . . . . . . . . . . . 10 Heaviest Build 379 | 10 50 52 106 109 222 233 302 324 320 339 215 200 196 181 202 221 222 215 215 311 230 223 235 218 239 239 295 237 237 267 251 253 278 320 293 292 317 379 260 Greatest Support 260 | 40 40 40 40 40 40 60 60 100 60 83 48 140 140 140 140 110 48 140 150 150 150 150 150 120 120 190 195 240 240 240 240 240 240 196 140 250 260 260 260 Greatest Overweight (x) 21 | 2 1 3 5 2 5 5 12 13 21 10 4 7 1 1 18 17 6 8 1 2 1 1 1 1 1 1 2 1 . 1 1 1 6 11 6 6 6 1 . Average Overweight (x) 1 | . . 2 2 2 2 2 6 3 6 4 3 2 1 . 3 1 4 4 1 1 1 . 1 . 1 . 1 . . . . . 1 . 5 5 4 . . Largest Inventory Capacity 35 | 8 20 20 25 25 35 35 35 35 35 35 35 30 30 30 30 30 30 30 30 30 30 30 30 30 30 30 30 30 30 30 30 30 30 30 30 30 30 30 25 Average Capacity 27 | 7 14 20 24 25 26 32 30 27 30 28 30 30 30 25 30 26 30 30 30 27 30 25 30 25 30 26 30 30 30 30 30 27 30 25 30 30 30 25 24 Most Carried 35 | 3 16 20 25 25 35 35 35 35 35 35 33 30 30 30 30 30 30 30 30 30 30 30 30 30 30 30 30 30 30 30 30 30 30 30 30 30 30 30 24 Average Carried 25 | 2 9 17 24 24 22 31 28 21 27 25 29 29 29 23 29 23 29 29 30 24 29 23 29 24 29 24 29 29 28 29 24 26 29 24 29 29 29 25 23 Final Capacity 35 | 8 20 20 25 25 35 35 35 35 35 35 30 30 30 30 30 30 30 30 30 30 30 30 30 30 30 30 30 30 30 30 30 30 30 30 30 30 30 25 5 Final Carried 35 | 3 16 20 25 25 35 35 35 35 35 35 30 30 30 29 30 30 30 30 30 30 29 30 29 30 30 30 30 30 30 30 30 30 30 30 29 30 30 25 4 Class Distribution -------------------- 21% | Botlord-Mutant 20% | Generator-Mutant 16% | Scavenger-Mutant 13% | Bothacker-Mutant 10% | Commander-Mutant 7% | Hauler-Mutant 6% | Mutant Dominant Class ---------------- Mutant | -10/Materials Mutant | -10/Mines Scavenger-Mutant | -9/Materials Mutant | -9/Mines Hauler-Mutant | -9/Exiles Hauler-Mutant | -8/Mines Hauler-Mutant | -8/Materials Scavenger-Mutant | -8/Garrison Hauler-Mutant | -8/Materials Bothacker-Mutant | -8/Garrison Bothacker-Mutant | -7/Factory Bothacker-Mutant | -7/Waste Hauler-Mutant | -7/Factory Bothacker-Mutant | -7/Garrison Bothacker-Mutant | -7/Factory Bothacker-Mutant | -7/Garrison Botlord-Mutant | -6/Factory Bothacker-Mutant | -6/Waste Bothacker-Mutant | -6/Factory Botlord-Mutant | -6/Garrison Botlord-Mutant | -6/Factory Commander-Mutant | -6/Garrison Botlord-Mutant | -5/Factory Botlord-Mutant | -5/Garrison Botlord-Mutant | -4/Factory Botlord-Mutant | -4/Garrison Botlord-Mutant | -4/Extension Botlord-Mutant | -4/Cetus Botlord-Mutant | -4/Archives Bothacker-Mutant | -4/Hub_04(d) Scavenger-Tank | -3/Research Scavenger-Mutant | -3/Quarantine Scavenger-Mutant | -3/Section 7 Botlord-Mutant | -3/Garrison Generator-Mutant | -2/Research Generator-Mutant | -2/Testing Generator-Mutant | -1/Access Generator-Mutant | -1/Command Generator-Mutant | -1/Access_0 Resources | -11 -10 -10 -9 -9 -9 -8 -8 -8 -8 -8 -7 -7 -7 -7 -7 -7 -6 -6 -6 -6 -6 -6 -5 -5 -4 -4 -4 -4 -4 -4 -3 -3 -3 -3 -2 -2 -1 -1 -1 ----------- Run | Scr Mat Min Mat Min Exi Min Mat Gar Mat Gar Fac Was Fac Gar Fac Gar Fac Was Fac Gar Fac Gar Fac Gar Fac Gar Ext Cet Arc Hub Res Qua Sec Gar Res Tes Acc Com Ac0 Matter Collected 34202 | 163 247 75 561 237 968 415 522 242 441 723 390 1129 70 557 221 845 441 105 60 1504 228 759 1396 1410 443 1203 1178 333 714 1056 2329 2360 3398 1093 400 773 2104 3042 67 Remotely 2499 | . . . . . . . . . . . . . . . . . . . . . . . . . . . . . . . . . 368 216 . . 686 1229 . Salvage Created 70971 | . 394 276 1923 300 655 791 1788 853 1757 1037 685 1867 . 815 487 628 189 . 10 1334 80 194 1259 784 174 474 2150 145 704 2126 3345 1333 2718 904 3226 2998 13205 18421 942 Parts 2911 | . 28 30 124 13 92 45 116 27 111 40 37 51 . 34 33 24 12 . . 50 10 11 55 27 6 13 65 10 41 102 159 105 127 33 170 197 448 429 36 Haulers Intercepted 14 | . . . 5 . . . . . . . . . . . . . . . . . . . . . . . . . . 1 1 . . . 1 2 4 . . Recyclers Shooed 17 | . . . 4 . . 2 . . . . . . 1 . . . . . . . . . 1 . 1 . 1 . . . 1 . 1 . 2 . 2 1 . Parts Field Recycled . | . . . . . . . . . . . . . . . . . . . . . . . . . . . . . . . . . . . . . . . . Retrieved Matter . | . . . . . . . . . . . . . . . . . . . . . . . . . . . . . . . . . . . . . . . . Parts Self-Destructed . | . . . . . . . . . . . . . . . . . . . . . . . . . . . . . . . . . . . . . . . . Prevented . | . . . . . . . . . . . . . . . . . . . . . . . . . . . . . . . . . . . . . . . . Kills | -11 -10 -10 -9 -9 -9 -8 -8 -8 -8 -8 -7 -7 -7 -7 -7 -7 -6 -6 -6 -6 -6 -6 -5 -5 -4 -4 -4 -4 -4 -4 -3 -3 -3 -3 -2 -2 -1 -1 -1 ------- Run | Scr Mat Min Mat Min Exi Min Mat Gar Mat Gar Fac Was Fac Gar Fac Gar Fac Was Fac Gar Fac Gar Fac Gar Fac Gar Ext Cet Arc Hub Res Qua Sec Gar Res Tes Acc Com Ac0 Combat Hostiles Destroyed 906 | . 11 6 31 14 2 7 36 19 36 13 14 6 . 27 10 12 2 . . 17 2 3 19 15 4 8 33 2 4 19 50 17 43 20 32 38 131 182 21 Melee 114 | . . . 18 . 1 2 23 . 28 1 1 1 . 1 . . . . . 2 . . 1 1 . . 4 . . . . 1 19 4 1 . 2 3 . Guns 381 | . 7 6 5 . . 2 . . 2 . . 5 . 14 . . . . . 2 . . . . . . 5 2 . 4 18 12 . . . 8 120 169 . Cannons 305 | . . . . 7 . . 6 9 2 7 10 . . . 7 8 1 . . 13 2 3 18 14 4 8 21 . 4 11 23 3 21 9 31 30 8 10 15 AOE 87 | . 4 . 8 7 1 3 6 7 4 2 3 . . 11 3 4 . . . . . . . . . . . . . 4 9 . . 7 . . . . 4 Classes Destroyed 30 | . 5 3 3 3 2 2 1 . . . 1 1 . 2 . . 1 . . 1 . . . . . . 1 . . . 1 . 2 . . 1 . . . Worker 90 | . 3 . 5 . . 1 1 . 2 . . . . . 3 . 3 . 1 . . . 5 . . . . . . 14 1 . 1 . 8 9 15 18 . Builder 41 | . . 1 4 . . . 2 . 1 . . . . . . . . . . . . . 1 . . . 3 . . 2 6 . . . 8 3 10 . . Tunneler 9 | . . 3 . . . 2 . . 1 . . . . . . . . . . . . . . . . . . . . 1 . . . . . . 2 . . Hauler 14 | . . . 5 . . . . . . . . . . . . . . . . . . . . . . . . . . 1 1 . . . 1 2 4 . . Recycler 48 | . . 1 4 1 . 4 . . 1 . 2 . . . 2 . . . . . . . 2 . . . . . . 7 1 . 3 . 2 . 12 6 . Carrier 11 | . . . . . . 1 . . . . . . . . . . . . . . . . . . . . . . . . . . . . . . . 10 . Mechanic 14 | . . . 1 . . . . . . . . . . . . . . . . . . . 1 . . . . . . . 1 . . . . . 1 10 . Operator 21 | . 1 . 1 . . . 3 . . . 1 . . . 1 . . . . . . . . . . . . . 9 . . . 2 . 1 . 1 1 . Turret 1 | . . . . . 1 . . . . . . . . . . . . . . . . . . . . . . . . . . . . . . . . . . Watcher 44 | . 1 . 5 . . . 5 . 4 . 1 . . . . . . . . . . 1 1 . 1 . 1 . . 1 2 1 2 . 2 3 8 5 . Swarmer 118 | . 3 4 12 . . 4 4 7 8 3 3 . . 14 6 5 . . . 6 . . 1 1 1 . . . . 4 12 . 3 8 . 9 . . . Saboteur 19 | . . . . . . . . . . . . . . 1 . . . . . . . . . 1 . . . . . . 1 . . . . . 2 14 . Grunt 317 | . 8 2 9 1 . 1 21 8 18 10 6 . . 7 2 4 . . . 4 . . 6 6 . 6 21 . . . 15 2 8 9 13 7 64 59 . Brawler 29 | . . . . . . 1 1 1 . . . . . . . . . . . . . . . 1 1 1 1 . . . 2 1 . . 1 . 7 11 . Duelist 30 | . . . . 1 . . . . 1 . . . . . . . . . . 1 . . 2 . . 1 1 . . . 2 . 1 . . . 10 10 . Protector 22 | . . . . . . . . . . . . . . . . . . . . . . . . . . . 1 . . 1 2 . . . . . 8 10 . Researcher 3 | . . . . . . . . . . . . . . . . . . . . . . . . . . . . . . . . . 1 . . 2 . . . Sentry 87 | . . . 10 . . . 9 2 8 2 1 . . 4 . 3 . . . 3 . 2 3 4 . . 6 . 4 2 2 . 6 3 2 . 6 5 . Demolisher 4 | . . . . 2 . . . . . . . . . . . . . . . . . . 1 . . . 1 . . . . . . . . . . . . Specialist 13 | . . . . . . . . . . . . . . 1 . . 1 . . 2 . 1 . . . . 1 . . . 2 . 1 . 2 . 2 . . Hunter 47 | . . . . . . . 1 1 1 . 2 . . . . . . . . . . . 1 2 2 . . 1 . 4 3 . 6 . 2 . 11 10 . Programmer 122 | . . . . . . . . . . . 2 . . . 2 . . . . . 2 . 5 . . . 1 . . 4 7 3 11 . 12 19 20 34 . Heavy 5 | . . . . . . . . . . . . . . . . . 1 . . . . . . . . . . . . 1 . . 1 . . . 1 1 . Behemoth 2 | . . . . . . . . . . . . . . . . . . . . 1 . . . . . 1 . . . . . . . . . . . . . Compactor 6 | . . . . . . . . . . . . 6 . . . . . . . . . . . . . . . . . . . . . . . . . . . Cetus Guard 1 | . . . . . . . . . . . . . . . . . . . . . . . . . . . . 1 . . . . . . . . . . . Quarantine Guard 11 | . . . . . . . . . . . . . . . . . . . . . . . . . . . . . . . . 11 . . . . . . . S7 Guard 2 | . . . . . . . . . . . . . . . . . . . . . . . . . . . . . . . . . 2 . . . . . . M Guard 2 | . . . . . . . . . . . . . . . . . . . . . . . . . . . . . . . . . . . . . . 2 . Enhanced Grunt 14 | . . . . . . . . . . . . . . . . . . . . . . . . . . . . . . . . . . . . . . . 14 Enhanced Hunter 4 | . . . . . . . . . . . . . . . . . . . . . . . . . . . . . . . . . . . . . . . 4 Lightning 3 | . . . . . . . . . . . . . . . . . . . . . . . . . . . . . . 3 . . . . . . . . . Combat Programmer 2 | . . . . . . . . . . . . . . . . . . . . . . . . . . . . . . . . . . . . . . 2 . Investigator 1 | . . . . . . . . . . . . . . . . . . . . . . . . . . . . . . . . . . . . . . 1 . Striker 15 | . . . . . . . . . . . . . . . . . . . . . . . . . . . . . . . 2 . 2 . . . . 11 . Executioner 12 | . . . . . . . . . . . . . . . . . . . . . . . . . . . . . . . . . 2 . . . . 10 . Alpha 7 2 | . . . . . . . . . . . . . . . . . . . . . . . . . . . . . . . . . . . . 1 . 1 . Protovariant P 2 | . . . . . . . . . . . . . . . . . . . . . . . . . . . . . . . . . . . . 2 . . . Zionite 7 | . . . . . 7 . . . . . . . . . . . . . . . . . . . . . . . . . . . . . . . . . . Assembled 17 | . . . . 10 7 . . . . . . . . . . . . . . . . . . . . . . . . . . . . . . . . . . Savage 1 | . . . . . . . . . . . . . . . . . . . . . . . . . . . 1 . . . . . . . . . . . . Best Kill Streak 35 | . 9 2 5 3 3 6 6 7 6 5 9 2 . 9 4 3 3 . 1 3 1 1 6 3 4 2 16 2 4 20 12 2 7 6 6 6 13 35 5 Combat Bots Only 30 | . 7 2 4 3 1 3 5 7 6 5 7 2 . 9 3 3 2 . . 3 1 1 2 3 3 2 16 2 2 4 11 2 7 6 5 4 13 30 5 Max Kills in Single Turn 19 | . 2 1 3 2 6 3 6 5 3 1 4 1 . 4 2 2 1 . 1 1 1 1 2 2 1 1 1 1 1 19 6 1 1 4 3 2 4 3 1 Gunslinging 1 | . . . . . . . . . . . . . . 1 . . . . . . . . . . . . . . . . . . . . . . . . . Exploded 5 | . 2 . 3 2 1 3 4 5 3 1 3 . . 4 1 2 . . . . . . . . . . . . . 4 4 . . 4 . . . . 1 Melee 1 | . . . 1 . 1 1 1 . 1 1 1 1 . 1 . . . . . 1 . . 1 1 . . 1 . . . . 1 1 1 1 . 1 1 . Uniques/NPCs Destroyed 10 | . . . . . 4 1 . . . . . . . . . . . . . . . . . . . . . . . . . . . . . . . 2 3 8R-AWN (-9/Exiles) EX-DEC (-9/Exiles) EX-BIN (-9/Exiles) EX-HEX (-9/Exiles) 7V-RTL (-8/Mines) MAIN.C Shell (-1/Command) MAIN.C (-1/Command) A8 (-1/Access_0) A6 (-1/Access_0) Architect (-1/Access_0) Combat | -11 -10 -10 -9 -9 -9 -8 -8 -8 -8 -8 -7 -7 -7 -7 -7 -7 -6 -6 -6 -6 -6 -6 -5 -5 -4 -4 -4 -4 -4 -4 -3 -3 -3 -3 -2 -2 -1 -1 -1 -------- Run | Scr Mat Min Mat Min Exi Min Mat Gar Mat Gar Fac Was Fac Gar Fac Gar Fac Was Fac Gar Fac Gar Fac Gar Fac Gar Ext Cet Arc Hub Res Qua Sec Gar Res Tes Acc Com Ac0 Damage Taken 49354 | . 438 263 1093 888 574 1159 1139 500 1289 1317 658 . 17 1293 742 1018 99 . 9 1430 88 454 2358 927 781 907 2676 86 63 770 2108 1986 6303 2537 1920 2245 1997 3689 3533 Core 4147 | . 18 52 84 34 59 54 60 43 102 142 144 . 5 124 95 67 . . . 48 15 . 136 64 49 80 191 11 . 54 76 56 215 260 44 881 141 203 540 Absorbed by Shields 39958 | . . . 72 . 199 . . 9 . . . . . . . . 127 . 9 696 23 373 444 342 244 598 1590 88 65 794 1560 1678 3403 1383 1093 1176 2526 11812 9654 Reduced by Siege Mode 3391 | . . . . . . 4 111 46 85 58 . . . 195 21 58 . . . 69 . 20 150 90 32 63 386 . . 136 185 104 416 165 30 134 129 532 172 Regen/Repaired (Parts) 15389 | . . . 330 . . . 807 . 35 . . . . . 691 . 21 . 143 143 309 57 37 . 415 . . . . . 1885 1554 2458 1087 1040 713 941 1724 999 Core Remaining (%) 60 | 100 . 72 . . . 42 . . . 36 . . . . . 37 . . . . . 92 . 80 . . . . . 66 . . . 24 . 57 . . . Volleys Fired 2918 | . 44 22 41 27 108 24 54 57 16 97 33 121 5 73 27 86 44 . 9 106 17 45 97 73 43 72 138 8 41 64 83 36 125 37 80 89 298 450 128 Largest 4 | . 2 2 2 2 2 2 2 2 2 2 2 2 1 2 2 2 1 . 1 2 2 2 2 2 2 2 2 2 2 2 4 4 4 2 1 1 2 1 1 Hottest 200 | . 40 40 79 136 120 60 160 160 160 160 160 60 81 162 130 130 120 . 5 122 122 122 122 122 114 130 130 132 132 132 192 192 70 94 180 180 200 200 200 Shots Fired 3968 | . 84 44 72 43 112 40 88 100 24 128 61 157 5 121 44 109 44 . 9 162 19 53 146 104 59 102 164 16 83 98 250 95 225 60 80 89 300 450 128 Gun 1609 | . 80 44 60 . 19 32 . 11 7 49 . 146 1 107 . 21 5 . . 41 . . . . . 4 58 12 51 23 127 67 . . . 28 259 357 . Cannon 1832 | . . . 3 32 11 . 68 87 14 73 60 . . . 37 67 10 . . 96 6 19 104 72 41 76 85 4 32 72 115 28 200 51 64 47 38 92 128 Launcher 62 | . 4 . 5 11 4 1 4 2 2 6 1 . . 4 3 3 . . . . . . . . . . . . . . 7 . . 4 . . . 1 . Special 465 | . . . 4 . 78 7 16 . 1 . . 11 4 10 4 18 29 . 9 25 13 34 42 32 18 22 21 . . 3 1 . 25 5 16 14 3 . . Kinetic 2419 | . 80 44 50 . 19 32 . 11 7 49 . 146 . . 7 46 6 . . 124 6 19 104 69 41 76 49 16 83 94 242 95 182 46 . 28 280 368 . Thermal 883 | . . . 17 32 89 7 84 87 15 73 60 . 1 107 30 42 9 . . 13 . . . 3 . 4 94 . . . . . . . . 6 2 15 93 Explosive 61 | . 4 . 5 11 4 1 4 2 2 6 1 . . 4 3 3 . . . . . . . . . . . . . . 7 . . 4 . . . . . Electromagnetic 32 | . . . . . . . . . . . . . . . . . . . . . . . . . . . . . . 1 . . 18 5 8 . . . . Slashing 219 | . . . . . . . . . . . . . . . . . . . . . . . . . . . . . . . . . . . 56 47 15 66 35 Robot Hit Streak 109 | . 9 5 7 6 9 4 15 19 8 45 10 16 9 29 31 16 9 . 10 24 6 12 26 16 21 21 57 5 13 26 15 24 22 17 35 42 109 72 36 Robot Miss Streak 10 | . 4 6 4 2 3 4 7 1 4 1 3 3 . 1 3 3 2 . 2 3 4 2 3 2 1 2 2 2 4 3 4 1 4 2 4 8 4 10 2 Penetration Max 3 | . . . . . 1 2 . . 1 1 . 1 . . . 1 1 . . 1 . . 2 1 . . . 1 1 1 2 . . . 1 2 3 3 1 Secondary Targets 5 | . . . . . . . . . . . . . . 1 . . . . . . . . . . . . 2 . . . 1 1 . . . . . . . Max Gunslinging Chain 1 | . . . . . . . . . . . . . . 1 . . . . . . . . . . . . 1 . . . 1 1 . . . . . . . Capacitor 35 | . . . . . . . . . . . . . . . . . . . . . . . . . . . . . . . . . . . . . . 35 . Shots Hit Robots 3345 | . 58 34 99 22 91 61 113 63 99 131 33 121 5 73 36 57 27 . 7 114 12 33 112 79 44 66 158 11 49 75 136 67 215 56 91 96 285 423 93 Core Hits 2357 | . 37 13 59 20 45 28 55 30 39 38 23 14 . 37 16 24 8 . . 36 3 4 39 22 13 17 83 2 22 68 111 26 77 30 114 130 406 548 120 Critical Kills 525 | . 1 . 1 . 2 4 . 3 . 5 . 3 . . . 2 . . . 18 2 4 20 12 . . 1 2 12 13 36 14 . . . 11 152 205 2 Critical Parts Destroyed 672 | . . . 1 . 4 6 . 3 . 20 . 4 . . . 5 1 . . 23 1 4 20 13 . . 1 6 8 19 53 16 . . . 19 166 279 . Critical Strikes 1469 | . 1 . 7 . 8 13 6 6 9 28 . 60 . 7 . 7 1 . . 46 3 8 47 30 4 5 8 9 23 37 90 37 21 3 5 40 341 553 6 Burn 8 | . . . 1 . . . . . . . . . . 7 . . . . . . . . . . . . . . . . . . . . . . . . . Meltdown 3 | . . . . . . . . 1 . . . . . . . . . . . . . . . . . . . . . . . . . . . . . . 2 Destroy 1342 | . 1 . 2 . 6 10 . 5 . 28 . 60 . . . 7 1 . . 43 3 8 44 30 . . 1 9 23 35 89 34 . . . 30 338 535 . Blast 46 | . . . . . . . . . . . . . . . . . . . . . . . 3 . 4 5 5 . . 1 1 1 18 3 . . 3 2 . Corrupt 1 | . . . . . . . . . . . . . . . . . . . . . . . . . . . . . . . . . 1 . . . . . . Smash 2 | . . . . . . . . . . . . . . . . . . . . . . . . . . . 1 . . 1 . . . . . . . . . Sever 67 | . . . 4 . 2 3 6 . 9 . . . . . . . . . . 3 . . . . . . 1 . . . . 2 2 . 5 10 . 16 4 Melee Attacks 1041 | . . 7 81 . 33 41 60 . 101 46 12 4 . 17 2 . 5 . 4 45 5 46 7 62 . 47 14 2 . 2 2 42 108 47 39 41 52 65 2 Impact 20 | . . . . . . . . . . . . . . . . . . . . . . . . . . . 3 2 . 2 2 11 . . . . . . . Slashing 972 | . . 7 81 . 33 41 60 . 93 6 11 4 . 17 2 . 5 . 4 45 5 46 7 62 . 47 11 . . . . 31 108 47 39 41 52 65 2 Piercing . | . . . . . . . . . . . . . . . . . . . . . . . . . . . . . . . . . . . . . . . . Sneak Attacks 129 | . . 7 18 . 1 2 . . 15 24 1 4 . . 2 . 3 . 1 . . . 1 1 . 1 2 . . 1 . . 8 . 12 11 10 4 . Combat Hostiles 15 | . . . . . . . . . 1 1 . 4 . . . . . . . . . . 1 1 . . . . . . . . 4 . 3 . . . . Follow-up Attacks 6 | . . . . . 2 4 . . . . . . . . . . . . . . . . . . . . . . . . . . . . . . . . . Damage Inflicted 139689 | . 880 758 4288 1078 2641 2316 4554 1989 4514 2439 1335 2325 24 2330 1412 1306 632 . 82 1889 152 182 2220 887 945 1653 6470 254 725 4754 6651 1994 10707 3804 8065 8094 7686 17643 20011 Guns 21515 | . 440 219 350 . 207 360 . 87 165 609 . 2132 24 1441 . 161 26 . . 122 . . . . . . 1612 175 482 205 1806 852 . . . 418 4121 5501 . Cannons 62827 | . . . 21 393 357 . 1156 1487 285 1046 862 . . . 865 981 334 . . 1248 92 182 1929 811 882 1569 4225 79 243 2017 1631 332 6043 1357 6018 5683 1929 6828 11942 Explosions 20962 | . 431 . 588 685 407 140 657 415 231 727 431 . . 889 361 164 . . . . . . . . . . . . . 2350 3113 . . 1204 . . . 100 8069 Melee 32676 | . . 532 3119 . 1100 1751 2606 . 3810 55 42 193 . . 186 . 272 . 82 519 . . 192 76 . 84 633 . . 90 . 810 4587 1243 2047 1869 1636 5142 . Ramming 780 | . 9 7 176 . . 9 . . 13 2 . . . . . . . . . . 60 . 99 . 63 . . . . 92 101 . 77 . . . . 72 . Kinetic 41053 | . 440 219 292 . 207 360 . 87 165 609 . 2132 . . 157 486 26 . . 873 92 182 1929 811 882 1569 2950 254 725 2167 3437 1184 5530 1357 . 418 5372 6141 . Thermal 31080 | . . . 113 449 927 56 1291 1487 295 1046 1215 . 24 1441 708 656 334 . . 497 . . . . . . 2887 . . . . . . . . 124 . 100 17430 Explosive 10034 | . 431 . 588 629 407 140 657 415 231 727 78 . . 889 361 164 . . . . . . . . . . . . . . 3113 . . 1204 . . . . . Electromagnetic 3170 | . . . . . . . . . . . . . . . . . . . . . . . . . . . . . . 2405 . . 513 . 252 . . . . Impact 286 | . . . . . . . . . . . . . . . . . . . . . . . . . . . 196 . . 90 . . . . . . . . . Slashing 53286 | . . 532 3119 . 1100 1751 2606 . 3810 55 42 193 . . 186 . 272 . 82 519 . . 192 76 . 84 437 . . . . 810 4587 1243 7813 7552 2314 11330 2581 Piercing . | . . . . . . . . . . . . . . . . . . . . . . . . . . . . . . . . . . . . . . . . Highest Corruption 18 | . . . . . . . . . . . 2 2 . . . . . . . . 2 2 6 5 . . 4 10 10 4 18 17 . . . . . . . Average Corruption 5 | . . . . . . . . . . . 1 1 . . . . . . . . 1 1 4 3 . . 3 9 9 2 11 8 . . . . . . . Corruption Purged 56 | . . . . . . . . . . . . 2 . . . . . . . . . 2 3 8 . . 8 . 10 . 3 20 . . . . . . . Corruption Blocked 2 | . . . . . . . . . . . . . . . . . . . . . . . . . 2 . . . . . . . . . . . . . . Effects 219 | . . . . . . . . . . . 5 2 . . . . . . . . 8 5 26 7 . . 12 6 13 8 42 85 . . . . . . . Message Errors 42 | . . . . . . . . . . . . . . . . . . . . . . . 5 4 . . 4 2 1 3 4 19 . . . . . . . Matter Fused 61 | . . . . . . . . . . . 1 2 . . . . . . . . 4 2 8 2 . . 2 1 6 1 13 19 . . . . . . . Heat Flow Errors 21 | . . . . . . . . . . . . . . . . . . . . . 2 1 2 . . . 1 . 1 1 2 11 . . . . . . . Energy Discharges 30 | . . . . . . . . . . . 1 . . . . . . . . . . . 5 . . . 3 1 1 1 8 10 . . . . . . . Parts Rejected 3 | . . . . . . . . . . . 1 . . . . . . . . . . . . . . . . . . 1 . 1 . . . . . . . Data Loss (minor) 24 | . . . . . . . . . . . . . . . . . . . . . . 1 4 1 . . 1 1 . . 6 10 . . . . . . . Data Loss (major) 12 | . . . . . . . . . . . 1 . . . . . . . . . 2 1 1 . . . . . 2 1 2 2 . . . . . . . Misfires 13 | . . . . . . . . . . . 1 . . . . . . . . . . . 1 . . . . . 1 . 2 8 . . . . . . . Alerts 3 | . . . . . . . . . . . . . . . . . . . . . . . . . . . . . 1 . 1 1 . . . . . . . Misdirections 1 | . . . . . . . . . . . . . . . . . . . . . . . . . . . . 1 . . . . . . . . . . . Weapon Failures 9 | . . . . . . . . . . . . . . . . . . . . . . . . . . . 1 . . . 4 4 . . . . . . . Overload Shots . | . . . . . . . . . . . . . . . . . . . . . . . . . . . . . . . . . . . . . . . . Overflow Damage 7173 | . . 249 264 22 36 104 157 30 376 59 88 . . 71 57 5 . . 42 34 16 . 65 . 42 32 206 . . 171 89 . 647 105 885 859 1113 571 778 Projectiles 1480 | . . . 2 . 20 . 37 14 30 20 13 . . . 39 5 . . . . . . 65 . 42 32 50 . . 23 6 . 160 30 65 50 144 113 520 Explosions 774 | . . . . 22 16 26 14 16 3 39 75 . . 71 18 . . . . . . . . . . . . . . 58 83 . . 75 . . . . 258 Melee 4919 | . . 249 262 . . 78 106 . 343 . . . . . . . . . 42 34 16 . . . . . 156 . . 90 . . 487 . 820 809 969 458 . Knockbacks 207 | . . . . . . . . . . . . . . . 3 1 . . . 7 1 2 26 6 6 15 23 . . 16 23 1 51 9 . . 16 1 . Impact 4 | . . . . . . . . . . . . . . . . . . . . . 1 . 1 . . . 2 . . . . . . . . . . . . Kinetic 191 | . . . . . . . . . . . . . . . 3 1 . . . 7 . 2 25 6 6 15 20 . . 16 23 1 48 8 . . 9 1 . Secondary 12 | . . . . . . . . . . . . . . . . . . . . . . . . . . . 1 . . . . . 3 1 . . 7 . . Self-Inflicted Damage 677 | . 78 . . 55 . 16 . . . 38 . . . . . . . . . . . . . . . . . . . 9 114 . . 57 . . . . 310 Shots 19 | . 3 . . 3 . 1 . . . 1 . . . . . . . . . . . . . . . . . . . 2 4 . . 1 . . . . 4 Rammed 57 | . 3 2 23 . . 1 . . 1 1 . . . . . . . . . . 2 . 8 . 3 . . . . 3 8 . 2 . . . . . . Targets Rammed 61 | . 3 2 25 . . 1 . . 1 1 . . . . . . . . . . 2 . 8 . 3 . . . . 4 8 . 2 . . . . 1 . Kicked . | . . . . . . . . . . . . . . . . . . . . . . . . . . . . . . . . . . . . . . . . Crushed 4 | . . . 2 . . . . . . . . . . . . . . . . . . . . . . . . . . 1 . . . . . . . 1 . Highest Temperature 348 | . 87 44 144 200 160 198 114 1 234 207 210 39 42 40 147 96 12 . . 48 108 169 276 . 144 328 227 60 174 273 218 257 130 . 340 272 284 348 144 Average Temperature 56 | . 27 15 35 81 58 54 60 1 87 44 89 11 25 14 75 30 5 . . 17 56 44 100 . 58 96 53 33 48 59 72 60 15 . 102 81 69 113 54 Received Heat Transfer 7234 | . 174 105 266 169 . 261 441 219 522 531 78 . . 435 48 378 2 . . 153 12 53 253 227 82 165 720 4 4 4 155 84 790 334 210 32 136 187 . Effects 4 | . . . . . . . . . . . . . . . . . . . . . . . 2 . . . . . . . . 1 . . . . 1 . . Energy Bleed 3 | . . . . . . . . . . . . . . . . . . . . . . . 2 . . . . . . . . . . . . . 1 . . Interference 1 | . . . . . . . . . . . . . . . . . . . . . . . . . . . . . . . . 1 . . . . . . . Siege Activations 322 | . . . . . . 1 21 8 12 7 . . . 13 5 7 . . . 14 3 6 10 13 2 7 14 1 9 12 14 16 18 7 14 17 36 28 7 Total Turns 10268 | . . . . . . 49 301 124 156 126 . . . 202 51 82 . . . 377 11 57 178 145 51 259 326 7 160 181 190 928 422 166 193 295 2730 2385 116 Longest Duration 740 | . . . . . . 49 77 36 27 38 . . . 44 20 20 . . . 98 6 13 37 28 34 101 68 7 49 46 27 280 88 40 34 51 740 578 48 Robots Corrupted 4 | . . . . . . . . . . . . . . . . . . . . . . . . . . . . . . 1 . . 3 . . . . . . Combat Hostiles 3 | . . . . . . . . . . . . . . . . . . . . . . . . . . . . . . . . . 3 . . . . . . Parts Fried 24 | . . . . . . . . . . . . . . . . . . . . . . . . . . . 1 . . 19 . . 3 . 1 . . . . Impact Corruptions 11 | . . . . . . . . . . . . . . . . . . . . . 1 . . . . . 6 . . 2 . . . . . . 1 1 . Robots Melted 14 | . . . . . . . 1 3 . 3 . . . 1 . . 1 . . . . . . . . . 3 . . . . . . . . . . . 2 Combat Hostiles 14 | . . . . . . . 1 3 . 3 . . . 1 . . 1 . . . . . . . . . 3 . . . . . . . . . . . 2 Parts Melted 83 | . . . 1 1 19 . 4 9 . 6 3 . . 5 . 3 3 . . 2 . . . . . 1 15 . . . . 5 . . . . 2 . 4 Heat Transferred 31173 | . . . 370 753 2705 7 2024 2850 597 2000 1900 . 37 2753 925 888 720 . . 1040 . . . . . . 4773 . . . . . . . . 146 . 40 6645 Parts Sabotaged 18 | . . . . . . . . . . . . . . 8 . . . . . . . . . 5 1 3 1 . . . . . . . . . . . . Parts Stolen . | . . . . . . . . . . . . . . . . . . . . . . . . . . . . . . . . . . . . . . . . Parts Stripped . | . . . . . . . . . . . . . . . . . . . . . . . . . . . . . . . . . . . . . . . . Power Chain Reactions . | . . . . . . . . . . . . . . . . . . . . . . . . . . . . . . . . . . . . . . . . Missiles Intercepted . | . . . . . . . . . . . . . . . . . . . . . . . . . . . . . . . . . . . . . . . . Alert | -11 -10 -10 -9 -9 -9 -8 -8 -8 -8 -8 -7 -7 -7 -7 -7 -7 -6 -6 -6 -6 -6 -6 -5 -5 -4 -4 -4 -4 -4 -4 -3 -3 -3 -3 -2 -2 -1 -1 -1 ------- Run | Scr Mat Min Mat Min Exi Min Mat Gar Mat Gar Fac Was Fac Gar Fac Gar Fac Was Fac Gar Fac Gar Fac Gar Fac Gar Ext Cet Arc Hub Res Qua Sec Gar Res Tes Acc Com Ac0 Peak Influence 3909 | . 312 162 493 338 . 103 499 837 741 765 806 280 562 1309 762 819 534 160 225 666 525 332 540 764 660 883 627 302 213 1088 906 630 404 868 510 394 2008 3909 . Initial 1284 | . . . 10 117 . . 5 179 407 101 401 250 . 393 686 368 429 160 . 52 349 7 174 378 401 252 463 76 60 . 570 474 119 303 477 192 236 1284 . Average 574 | . 79 61 211 249 . 41 199 643 165 569 541 97 360 1114 623 736 363 69 76 484 247 241 337 638 473 771 309 197 61 216 685 205 197 794 233 213 1081 2903 . Maximum Alert Level 5 | . 1 . 2 1 . . 2 3 3 3 3 1 2 4 3 3 2 . 1 2 2 1 2 3 2 3 2 1 1 3 3 2 2 3 2 1 5 5 . Low Security (%) 25 | 100 89 100 40 19 . 100 41 9 74 7 . 72 8 . . . . 100 85 8 47 30 17 . . . 36 51 84 73 . 73 54 . 28 24 . . . Level 1 23 | . 10 . 52 80 . . 54 8 16 23 2 27 69 2 . 2 52 . 14 17 25 69 49 2 25 6 31 48 15 . 1 17 45 1 66 75 18 . . Level 2 17 | . . . 6 . . . 4 27 7 15 83 . 21 3 77 22 47 . . 74 27 . 32 48 74 15 32 . . 20 51 8 . 12 5 . 9 . . Level 3 16 | . . . . . . . . 54 1 53 13 . . 25 22 75 . . . . . . . 49 . 77 . . . 5 46 . . 86 . . 19 . . Level 4 4 | . . . . . . . . . . . . . . 67 . . . . . . . . . . . . . . . . . . . . . . 31 11 . Level 5 7 | . . . . . . . . . . . . . . . . . . . . . . . . . . . . . . . . . . . . . 21 56 . High Security 3 | . . . . . . . . . . . . . . . . . . . . . . . . . . . . . . . . . . . . . . 31 . Max Security . | . . . . . . . . . . . . . . . . . . . . . . . . . . . . . . . . . . . . . . . . Sterilizations 1 | . . . . . . . . . . . . . . . . . . . . . . . . . . . . . . . . . . . . . 1 . . Squads Dispatched 177 | . 1 . 2 2 . . 5 . 7 . 8 . 8 . 3 . 5 . 1 . 4 . 8 . 6 . 5 . . 7 9 1 10 . 6 10 26 43 . Investigation 19 | . . . 1 1 . . . . 4 . 3 . 1 . . . 1 . . . . . . . . . . . . . 1 . . . 1 2 3 1 . Extermination 47 | . . . . . . . . . . . 2 . 2 . 2 . 2 . . . 3 . 2 . 1 . . . . 3 2 . 6 . 3 8 8 3 . Reinforcement 50 | . 1 . 1 1 . . 5 . 3 . 3 . 4 . 1 . 2 . 1 . 1 . 3 . 2 . 3 . . 4 2 . 4 . 2 . 4 3 . Assault 56 | . . . . . . . . . . . . . . . . . . . . . . . . . 2 . 2 . . . 4 1 . . . . 11 36 . Garrison 5 | . . . . . . . . . . . . . 1 . . . . . . . . . 3 . 1 . . . . . . . . . . . . . . Intercept . | . . . . . . . . . . . . . . . . . . . . . . . . . . . . . . . . . . . . . . . . Searches Triggered . | . . . . . . . . . . . . . . . . . . . . . . . . . . . . . . . . . . . . . . . . Construction Impeded 11 | . . . . 1 . . 2 . 1 . . . 1 . 1 . . . . . . . . . . . 2 . . . 1 . . . . . 2 . . Haulers Reinforced 5 | . . . . . . . . . . . 1 . . . . . . . 1 . . . 1 . 1 . . . . . 1 . . . . . . . . Active Scanning Responses . | . . . . . . . . . . . . . . . . . . . . . . . . . . . . . . . . . . . . . . . . Cargo Convoy Interrupts 2 | . . . . . . . . . . . . . . . . . . . . . . . . . 1 . . . . . 1 . . . . . . . . Stealth | -11 -10 -10 -9 -9 -9 -8 -8 -8 -8 -8 -7 -7 -7 -7 -7 -7 -6 -6 -6 -6 -6 -6 -5 -5 -4 -4 -4 -4 -4 -4 -3 -3 -3 -3 -2 -2 -1 -1 -1 --------- Run | Scr Mat Min Mat Min Exi Min Mat Gar Mat Gar Fac Was Fac Gar Fac Gar Fac Was Fac Gar Fac Gar Fac Gar Fac Gar Ext Cet Arc Hub Res Qua Sec Gar Res Tes Acc Com Ac0 Distress Signals 63 | . 2 1 4 . . 1 2 . 5 . 2 . 1 . . . . . 3 . 1 1 2 1 3 . 2 2 . 1 3 . 3 . 2 1 2 18 . Communications Jammed 248 | . . . . . . . . . 1 . 2 . . . . . 37 . 5 . . . 35 . . . . 60 . 1 3 . 50 . 46 . 6 2 . Distress Signals 241 | . . . . . . . . . . . 2 . . . . . 34 . 4 . . . 35 . . . . 60 . 1 3 . 49 . 46 . 5 2 . Times Spotted 1616 | . 25 12 47 15 32 8 53 20 69 29 31 4 13 34 17 31 29 . 14 50 13 25 64 30 36 41 58 20 13 25 71 23 80 27 49 50 167 254 37 Peak Tracking Total 16 | . 6 3 9 5 4 4 5 7 7 8 6 1 4 9 3 6 6 . 5 8 3 4 8 4 6 7 10 5 1 5 10 4 5 6 6 5 9 16 5 Tactical Retreats 148 | . . 2 3 . 24 2 4 4 21 1 1 . . 2 1 . . . . 13 . 1 4 . 3 2 5 1 . 2 6 3 12 . 3 4 12 12 . Traps | -11 -10 -10 -9 -9 -9 -8 -8 -8 -8 -8 -7 -7 -7 -7 -7 -7 -6 -6 -6 -6 -6 -6 -5 -5 -4 -4 -4 -4 -4 -4 -3 -3 -3 -3 -2 -2 -1 -1 -1 ------- Run | Scr Mat Min Mat Min Exi Min Mat Gar Mat Gar Fac Was Fac Gar Fac Gar Fac Was Fac Gar Fac Gar Fac Gar Fac Gar Ext Cet Arc Hub Res Qua Sec Gar Res Tes Acc Com Ac0 Traps Triggered 100 | . . . 1 . . . 2 6 1 12 1 . . 3 1 13 3 . . 13 . . 1 14 1 6 4 . . 1 1 1 1 7 3 . 1 3 . Indirectly 1 | . . . . . . . . . . . . . . . . . . . . . . . . . . . . . . 1 . . . . . . . . . Trap Hack Attempts . | . . . . . . . . . . . . . . . . . . . . . . . . . . . . . . . . . . . . . . . . Triggered . | . . . . . . . . . . . . . . . . . . . . . . . . . . . . . . . . . . . . . . . . Disarmed . | . . . . . . . . . . . . . . . . . . . . . . . . . . . . . . . . . . . . . . . . Reprogrammed . | . . . . . . . . . . . . . . . . . . . . . . . . . . . . . . . . . . . . . . . . Reused . | . . . . . . . . . . . . . . . . . . . . . . . . . . . . . . . . . . . . . . . . Traps Extracted . | . . . . . . . . . . . . . . . . . . . . . . . . . . . . . . . . . . . . . . . . Installed . | . . . . . . . . . . . . . . . . . . . . . . . . . . . . . . . . . . . . . . . . Triggered 2 | . . . . . . . . . . . . . . . . . . . . . . . . . 2 . . . . . . . . . . . . . . Machines | -11 -10 -10 -9 -9 -9 -8 -8 -8 -8 -8 -7 -7 -7 -7 -7 -7 -6 -6 -6 -6 -6 -6 -5 -5 -4 -4 -4 -4 -4 -4 -3 -3 -3 -3 -2 -2 -1 -1 -1 ---------- Run | Scr Mat Min Mat Min Exi Min Mat Gar Mat Gar Fac Was Fac Gar Fac Gar Fac Was Fac Gar Fac Gar Fac Gar Fac Gar Ext Cet Arc Hub Res Qua Sec Gar Res Tes Acc Com Ac0 Machines Disabled 166 | . . . . 1 11 1 1 4 . 6 4 . 3 5 2 4 2 . 1 5 . 4 1 4 3 8 3 5 4 32 2 7 19 3 . 5 3 8 5 Max in Single Turn 18 | . . . . 1 3 1 1 1 . 1 4 . . 1 1 1 1 . 1 1 . 1 . 1 1 1 1 . 1 18 1 1 1 1 . 1 1 2 1 Garrison Access 5 | . . . . . . . . . . . . . . . . . 1 . . . . . . . 1 . . . . . . . . . . . 3 . . Garrison Relay 37 | . . . . . . . . 2 . 5 . . . 5 . 4 . . . 5 . 4 . 4 . 4 . . . . . . . 4 . . . . . Phase Generator 1 | . . . . . . . . . . . . . . . . . . . . . . . . . . . . . . . . . . . . . . 1 . Network Hub 3 | . . . . . . . . . . . . . . . . . . . . . . . . . . . . . . 3 . . . . . . . . . Machines Sabotaged . | . . . . . . . . . . . . . . . . . . . . . . . . . . . . . . . . . . . . . . . . Garrisons Compromised 1 | . . . . . . . . . . . . . . . . . . . . . . . . . 1 . . . . . . . . . . . . . . Overloaded Fab Kills . | . . . . . . . . . . . . . . . . . . . . . . . . . . . . . . . . . . . . . . . . Hacking | -11 -10 -10 -9 -9 -9 -8 -8 -8 -8 -8 -7 -7 -7 -7 -7 -7 -6 -6 -6 -6 -6 -6 -5 -5 -4 -4 -4 -4 -4 -4 -3 -3 -3 -3 -2 -2 -1 -1 -1 --------- Run | Scr Mat Min Mat Min Exi Min Mat Gar Mat Gar Fac Was Fac Gar Fac Gar Fac Was Fac Gar Fac Gar Fac Gar Fac Gar Ext Cet Arc Hub Res Qua Sec Gar Res Tes Acc Com Ac0 Machines Accessed 193 | . 7 . 16 1 2 . 13 . 14 . 5 . 3 . 6 . 10 . 9 . 4 . 8 . 3 . 11 1 . 5 8 15 13 . 7 13 16 3 . Terminals 121 | . 6 . 11 . . . 7 . 8 . 1 . 1 . 2 . 6 . 5 . 1 . 3 . 1 . 11 1 . 5 6 10 11 . 5 9 9 2 . Fabricators 11 | . . . . . . . . . . . 2 . . . . . 2 . 1 . . . 2 . . . . . . . . . . . 1 2 1 . . Repair Stations 24 | . . . 2 . . . 1 . 2 . 1 . . . 3 . 1 . 2 . 2 . 2 . 1 . . . . . 2 2 . . 1 1 1 . . Recycling Units 9 | . 1 . 2 . . . 2 . 2 . . . . . . . . . . . . . . . . . . . . . . . . . . . 1 1 . Scanalyzers 12 | . . . 1 . . . 2 . 1 . 1 . 1 . . . . . . . . . . . . . . . . . . 3 1 . . 1 1 . . Garrison Access 13 | . . . . . . . 1 . 1 . . . 1 . 1 . 1 . 1 . 1 . 1 . 1 . . . . . . . 1 . . . 3 . . Total Hacks 700 | . 23 . 48 1 3 . 58 . 47 . 16 . 14 . 20 . 19 . 15 . 15 . 21 . 6 . 19 2 . 15 49 87 51 . 33 63 66 9 . Successful 366 | . 12 . 27 1 3 . 46 . 33 . 7 . 5 . 13 . 11 . 7 . 9 . 10 . 5 . 6 . . 5 28 46 21 . 11 30 29 1 . Failed 332 | . 11 . 21 . . . 12 . 14 . 9 . 9 . 7 . 8 . 8 . 6 . 11 . 1 . 13 2 . 10 21 40 30 . 22 32 37 8 . Catastrophic 58 | . 1 . . . . . 1 . 1 . . . 1 . . . 1 . 2 . 1 . 1 . . . 4 1 . 2 4 7 6 . 4 5 13 3 . Database Lockouts 2 | . . . . . . . . . . . . . . . . . . . . . . . . . . . . . . . . 1 . . . 1 . . . Manual 326 | . 23 . 34 . 1 . 17 . 20 . 5 . 7 . 4 . 6 . 9 . 5 . 6 . 2 . 11 1 . 12 14 37 28 . 23 44 13 4 . Terminals 426 | . 20 . 37 . . . 21 . 23 . 2 . 7 . 4 . 11 . 9 . 7 . 9 . 2 . 19 2 . 15 31 47 47 . 25 47 36 5 . Fabricators 45 | . . . . . . . . . . . 7 . . . . . 5 . 1 . . . 4 . . . . . . . . . . . 7 9 12 . . Repair Stations 107 | . . . 5 . . . 12 . 8 . 3 . . . 15 . 2 . 4 . 6 . 6 . 2 . . . . . 18 22 . . 1 2 1 . . Recycling Units 25 | . 3 . 4 . . . 5 . 4 . . . . . . . . . . . . . . . . . . . . . . . . . . . 5 4 . Scanalyzers 71 | . . . 2 . . . 19 . 10 . 4 . 6 . . . . . . . . . . . . . . . . . . 18 3 . . 5 4 . . Garrison Access 22 | . . . . . . . 1 . 2 . . . 1 . 1 . 1 . 1 . 2 . 2 . 2 . . . . . . . 1 . . . 8 . . Terminal Hacks 118 | . 8 . 18 1 3 . 9 . 10 . . . . . 1 . 3 . . . 3 . 2 . . . 5 . . 1 9 10 11 . 4 10 9 1 . Record 4 | . . . . . 2 . . . . . . . . . . . . . . . . . . . . . . . . . . 2 . . . . . . . Part Schematic 7 | . 1 . . . . . . . 1 . . . . . . . . . . . 1 . . . . . . . . . . 3 . . . 1 . . . Robot Analysis 8 | . 2 . 4 . . . . . . . . . . . . . . . . . . . . . . . . . . . . . . . . . 2 . . Prototype ID Bank 9 | . 4 . 5 . . . . . . . . . . . . . . . . . . . . . . . . . . . . . . . . . . . . Open Door 14 | . . . . 1 . . . . . . . . . . . . . . . . . . . . . . 5 . . . 1 1 5 . . . 1 . . Level Access Points 1 | . . . . . . . . . . . . . . . . . . . . . . . . . . . . . . . . . . . . 1 . . . Branch Access Points 2 | . . . . . . . . . . . . . . . . . . . . . . . . . . . . . . . . . . . 1 . 1 . . Emergency Access Points 2 | . . . . . . . . . . . . . . . . . . . . . . . . . . . . . . . . . 1 . . . 1 . . Machine Index 3 | . . . . . . . . . 1 . . . . . . . . . . . . . . . . . . . . . 1 . . . . 1 . . . Terminal Index 6 | . . . . . . . 1 . . . . . . . . . . . . . . . . . . . . . . . 1 . 1 . 1 1 1 . . Fabricator Index 2 | . . . . . . . . . . . . . . . 1 . . . . . . . . . . . . . . . 1 . . . . . . . . Repair Station Index 2 | . . . . . . . . . 1 . . . . . . . . . . . . . 1 . . . . . . . . . . . . . . . . Scanalyzer Index 1 | . . . . . . . . . 1 . . . . . . . . . . . . . . . . . . . . . . . . . . . . . . Garrison Index 1 | . . . . . . . . . . . . . . . . . . . . . . . . . . . . . . . . . . . . . 1 . . Alert Level 6 | . . . 3 . . . 3 . . . . . . . . . . . . . . . . . . . . . . . . . . . . . . . . Unreport Threat 12 | . . . 2 . . . 3 . 4 . . . . . . . . . . . . . . . . . . . . . 2 1 . . . . . . . Locate Traps 13 | . . . 3 . . . 1 . 1 . . . . . . . 2 . . . . . . . . . . . . . . 2 1 . . 1 1 1 . Surveillance Status 1 | . . . . . . . . . . . . . . . . . . . . . 1 . . . . . . . . . . . . . . . . . . Patrol Status 1 | . . . . . . . . . . . . . . . . . . . . . 1 . . . . . . . . . . . . . . . . . . Recall Extermination 2 | . . . . . . . . . . . . . . . . . . . . . . . . . . . . . . . . . . . . 2 . . . Recall Assault 2 | . . . . . . . . . . . . . . . . . . . . . . . . . . . . . . . 2 . . . . . . . . Hauler Manifests 9 | . 1 . 1 . . . 1 . 1 . . . . . . . . . . . . . . . . . . . . 1 1 . 1 . . 1 1 . . Zone Layout 9 | . . . . . . . . . . . . . . . . . 1 . . . . . 1 . . . . . . . . 1 2 . 2 2 . . . EX-Prototype ID Bank 1 | . . . . . 1 . . . . . . . . . . . . . . . . . . . . . . . . . . . . . . . . . . Fabricator Hacks 23 | . . . . . . . . . . . 3 . . . . . 3 . 1 . . . 3 . . . . . . . . . . . 1 5 7 . . Network Status 4 | . . . . . . . . . . . 1 . . . . . . . . . . . . . . . . . . . . . . . 1 1 1 . . Load Schematic 10 | . . . . . . . . . . . 2 . . . . . 1 . . . . . 1 . . . . . . . . . . . . 3 3 . . Build 9 | . . . . . . . . . . . . . . . . . 2 . 1 . . . 2 . . . . . . . . . . . . 1 3 . . Repair Station Hacks 69 | . . . 4 . . . 11 . 5 . 1 . . . 9 . 2 . 2 . 4 . 1 . 2 . . . . . 13 15 . . . . . . . Scan Component 39 | . . . 2 . . . 6 . 3 . 1 . . . 6 . 1 . 1 . 2 . 1 . 1 . . . . . 7 8 . . . . . . . Repair 30 | . . . 2 . . . 5 . 2 . . . . . 3 . 1 . 1 . 2 . . . 1 . . . . . 6 7 . . . . . . . Recycling Unit Hacks 2 | . . . . . . . . . 1 . . . . . . . . . . . . . . . . . . . . . . . . . . . 1 . . Retrieve Components 2 | . . . . . . . . . 1 . . . . . . . . . . . . . . . . . . . . . . . . . . . 1 . . Scanalyzer 49 | . . . 2 . . . 19 . 10 . 1 . 3 . . . . . . . . . . . . . . . . . . 10 1 . . 2 1 . . Insert Component 28 | . . . 1 . . . 7 . 4 . 1 . 2 . . . . . . . . . . . . . . . . . . 9 1 . . 2 1 . . Analyze 21 | . . . 1 . . . 12 . 6 . . . 1 . . . . . . . . . . . . . . . . . . 1 . . . . . . . Garrison Access Hacks 20 | . . . . . . . 1 . 2 . . . 1 . 1 . 1 . 1 . 2 . 2 . 2 . . . . . . . 1 . . . 6 . . Unlock Access 9 | . . . . . . . 1 . 1 . . . 1 . 1 . . . 1 . 1 . 1 . 1 . . . . . . . 1 . . . . . . Seal Access 4 | . . . . . . . . . . . . . . . . . 1 . . . . . . . . . . . . . . . . . . . 3 . . Coupler Status 7 | . . . . . . . . . 1 . . . . . . . . . . . 1 . 1 . 1 . . . . . . . . . . . 3 . . Unauthorized Hacks 85 | . 4 . 3 . . . 6 . 5 . 2 . 1 . 2 . 2 . 3 . . . 2 . 1 . 1 . . 4 6 11 8 . 6 13 5 . . Terminals 66 | . 2 . 3 . . . 3 . 4 . 1 . 1 . 2 . 2 . 3 . . . 1 . 1 . 1 . . 4 5 10 8 . 4 9 2 . . Track 5 | . . . . . . . . . . . . . . . . . . . . . . . . . . . . . . . . 2 1 . . 2 . . . Assimilate 6 | . . . . . . . 1 . 1 . . . . . . . . . . . . . . . . . . . . . . . 1 . 1 2 . . . Botnet 43 | . 2 . 2 . . . 2 . 2 . 1 . 1 . 2 . 2 . 2 . . . 1 . . . 1 . . 2 3 8 4 . 2 4 2 . . Detonate 2 | . . . . . . . . . . . . . . . . . . . . . . . . . . . . . . 2 . . . . . . . . . Operators 10 | . . . 1 . . . . . 1 . . . . . . . . . 1 . . . . . 1 . . . . . 2 . 2 . 1 1 . . . Fabricators 7 | . . . . . . . . . . . 1 . . . . . . . . . . . . . . . . . . . . . . . 1 3 2 . . Prioritize 1 | . . . . . . . . . . . . . . . . . . . . . . . . . . . . . . . . . . . . . 1 . . Haulers 3 | . . . . . . . . . . . . . . . . . . . . . . . . . . . . . . . . . . . 1 1 1 . . Recompile 3 | . . . . . . . . . . . 1 . . . . . . . . . . . . . . . . . . . . . . . . 2 . . . Repair Stations 3 | . . . . . . . . . . . . . . . . . . . . . . . 1 . . . . . . . 1 . . . 1 . . . . Mechanics 3 | . . . . . . . . . . . . . . . . . . . . . . . 1 . . . . . . . 1 . . . 1 . . . . Recycling Units 6 | . 2 . . . . . 3 . 1 . . . . . . . . . . . . . . . . . . . . . . . . . . . . . . Reject 2 | . 1 . . . . . 1 . . . . . . . . . . . . . . . . . . . . . . . . . . . . . . . . Mask 4 | . 1 . . . . . 2 . 1 . . . . . . . . . . . . . . . . . . . . . . . . . . . . . . Scanalyzers 2 | . . . . . . . . . . . . . . . . . . . . . . . . . . . . . . . . 1 . . . 1 . . . Researchers 2 | . . . . . . . . . . . . . . . . . . . . . . . . . . . . . . . . 1 . . . 1 . . . Garrison Access 1 | . . . . . . . . . . . . . . . . . . . . . . . . . . . . . . . . . . . . . 1 . . Watchers 1 | . . . . . . . . . . . . . . . . . . . . . . . . . . . . . . . . . . . . . 1 . . Data Cores Recovered 2 | . . . . . . . . . . . . . . . . . . . . . . . 1 . . . . . . . . . . . . . 1 . . Used 2 | . . . . . . . . . . . . . . . . . . . . . . . 1 . . . . . . . . . . . . . 1 . . Hacking Detections 155 | . 6 . 13 . . . 12 . 11 . 5 . 2 . 6 . 9 . 8 . 2 . 7 . 3 . 8 1 . 4 6 11 8 . 6 9 15 3 . Full Trace Events 13 | . . . . . . . 1 . 3 . 1 . 1 . . . 1 . . . . . . . . . . . . . 1 . . . 1 . 3 1 . Feedback Events 2 | . . . . . . . . . . . . . . . . . . . . . . . . . . . . . . . 1 . . . 1 . . . . Corruption 1 | . . . . . . . . . . . . . . . . . . . . . . . . . . . . . . . . . . . 1 . . . . Hackware Fried 1 | . . . . . . . . . . . . . . . . . . . . . . . . . . . . . . . 1 . . . . . . . . Feedback Blocked . | . . . . . . . . . . . . . . . . . . . . . . . . . . . . . . . . . . . . . . . . Robot Schematics Acquired 2 | . . . . . . . . . . . . . . . . . . . . . . . . . . . . . . . . . . . . 2 . . . Robots Built 3 | . . . . . . . . . . . . . . . . . 3 . . . . . . . . . . . . . . . . . . . . . . Authchips . | . . . . . . . . . . . . . . . . . . . . . . . . . . . . . . . . . . . . . . . . Time 201 | . . . . . . . . . . . . . . . . . 67 . . . . . 134 . . . . . . . . . . . . . . . . Total Robot Build Rating 12 | . . . . . . . . . . . . . . . . . 12 . . . . . . . . . . . . . . . . . . . . . . Part Schematics Acquired 25 | . 1 . 1 . . . 4 . 5 . . . 1 . . . . . . . 1 . . . . . . . . . . 4 1 . . 7 . . . Parts Built 9 | . . . . . . . . . . . . . . . . . . . 2 . . . 2 . . . . . . . . . . . . 2 3 . . Authchips 4 | . . . . . . . . . . . . . . . . . . . . . . . 1 . . . . . . . . . . . . 1 2 . . Time 598 | . . . . . . . . . . . . . . . . . 128 . 117 . . . 128 . . . . . . . . . . . . 69 156 . . Total Part Build Rating 73 | . . . . . . . . . . . . . . . . . . . 14 . . . 16 . . . . . . . . . . . . 18 25 . . Parts Repaired 30 | . . . 2 . . . 5 . 2 . . . . . 3 . 1 . 1 . 2 . . . 1 . . . . . 6 7 . . . . . . . Time 1775 | . . . 58 . . . 375 . 260 . . . . . 184 . 62 . 68 . 136 . . . 34 . . . . . 304 294 . . . . . . . Parts Recycled . | . . . . . . . . . . . . . . . . . . . . . . . . . . . . . . . . . . . . . . . . Recycled Matter . | . . . . . . . . . . . . . . . . . . . . . . . . . . . . . . . . . . . . . . . . Retrieved Matter . | . . . . . . . . . . . . . . . . . . . . . . . . . . . . . . . . . . . . . . . . Retrieved Components 20 | . . . . . . . . . 10 . . . . . . . . . . . . . . . . . . . . . . . . . . . 10 . . Parts Scanalyzed 12 | . . . 1 . . . 4 . 4 . 1 . 1 . . . . . . . . . . . . . . . . . . 1 . . . . . . . Part Schematics Acquired 11 | . . . 1 . . . 4 . 4 . . . 1 . . . . . . . . . . . . . . . . . . 1 . . . . . . . Parts Damaged 4 | . . . . . . . 1 . 3 . . . . . . . . . . . . . . . . . . . . . . . . . . . . . . Bothacking | -11 -10 -10 -9 -9 -9 -8 -8 -8 -8 -8 -7 -7 -7 -7 -7 -7 -6 -6 -6 -6 -6 -6 -5 -5 -4 -4 -4 -4 -4 -4 -3 -3 -3 -3 -2 -2 -1 -1 -1 ------------ Run | Scr Mat Min Mat Min Exi Min Mat Gar Mat Gar Fac Was Fac Gar Fac Gar Fac Was Fac Gar Fac Gar Fac Gar Fac Gar Ext Cet Arc Hub Res Qua Sec Gar Res Tes Acc Com Ac0 Used RIF Installer 9 | . . . . . . . . 1 . 1 . . . 1 . 1 . . . 1 . 1 . 1 . 1 . . . . . . . 1 . . . . . Coupler Efficiency 1 | . . . . . . . . . . . . . . . . . . . . . . . . . . 1 . . . . . . . . . . . . . Hotswap 1 | . . . . . . . . . . . . . . . . . . . . . . . . . . . . . . . . . . 1 . . . . . Command Fork 1 | . . . . . . . . . . 1 . . . . . . . . . . . . . . . . . . . . . . . . . . . . . Threat Obfuscator 2 | . . . . . . . . . . . . . . 1 . . . . . . . . . 1 . . . . . . . . . . . . . . . Zone Cloak 1 | . . . . . . . . . . . . . . . . . . . . . . 1 . . . . . . . . . . . . . . . . . Robot Detection 1 | . . . . . . . . . . . . . . . . . . . . 1 . . . . . . . . . . . . . . . . . . . Program Shield 1 | . . . . . . . . . . . . . . . . 1 . . . . . . . . . . . . . . . . . . . . . . . Robots Hacked 178 | . . . . . . . . . 1 10 1 6 3 7 2 13 9 . 5 15 3 16 15 16 10 10 2 . . 1 1 . 13 4 7 5 3 . . Non-combat 36 | . . . . . . . . . 1 . 1 . 1 . . . 3 . 4 . 2 1 9 . 3 . 1 . . . . . 3 . 2 2 3 . . Combat 142 | . . . . . . . . . . 10 . 6 2 7 2 13 6 . 1 15 1 15 6 16 7 10 1 . . 1 1 . 10 4 5 3 . . . Robot Hacks Applied 205 | . . . . . . . . . 4 10 1 9 4 7 3 15 9 . 6 15 4 16 20 16 11 10 3 . . 1 1 . 16 4 10 7 3 . . parse_system 3 | . . . . . . . . . . . . 3 . . . . . . . . . . . . . . . . . . . . . . . . . . . no_distress 2 | . . . . . . . . . . . . . . . . . 1 . . . . . 1 . . . . . . . . . . . . . . . . generate_echo 1 | . . . . . . . . . . . . . . . . . . . 1 . . . . . . . . . . . . . . . . . . . . find_chute 3 | . . . . . . . . . . . 1 . . . . . 1 . . . . . 1 . . . . . . . . . . . . . . . . ignore_repairs 3 | . . . . . . . . . . . . . . . . . . . . . . . 2 . . . . . . . . . . . . 1 . . . map_walls 2 | . . . . . . . . . . . . . . . . . 1 . 1 . . . . . . . . . . . . . . . . . . . . find_fabricator 3 | . . . . . . . . . . . . . . . . . . . . . . . 2 . 1 . . . . . . . . . . . . . . drop_inventory 4 | . . . . . . . . . . . . . . . . . . . . . . . 3 . . . . . . . . . 1 . . . . . . find_recycling 2 | . . . . . . . . . . . . . . . . . . . . . . . . . . . . . . . . . . . 1 . 1 . . ignore_parts 2 | . . . . . . . . . . . . . . . . . . . . . . . . . . . . . . . . . . . . 1 1 . . purge_threat 12 | . . . . . . . . . 3 . . . 1 . . . . . . . 2 . 1 . . . 2 . . . . . 1 . 2 . . . . block_reporting 2 | . . . . . . . . . . . . . . . . . . . 1 . . . . . . . . . . . . . . . 1 . . . . map_route 5 | . . . . . . . . . . . . . . . . . . . . . 1 . 1 . 1 . . . . . . . 1 . . . 1 . . find_scanalyzer 1 | . . . . . . . . . . . . . . . . . . . . . . . . . . . . . . . . . 1 . . . . . . disable_scanner 8 | . . . . . . . . . . . . . . . . . . . . . . . . . . . . . . . . . 5 . . 3 . . . locate_prototypes 4 | . . . . . . . . . . . . . . . . . . . . . . . . . . . . . . . . . 2 . . 2 . . . ignore_targets 6 | . . . . . . . . . . . . 6 . . . . . . . . . . . . . . . . . . . . . . . . . . . find_garrison 5 | . . . . . . . . . . . . . . . 1 . . . 1 . 1 . 1 . 1 . . . . . . . . . . . . . . focus_fire 1 | . . . . . . . . . . . . . . . . 1 . . . . . . . . . . . . . . . . . . . . . . . scatter_targeting 4 | . . . . . . . . . . . . . . 1 . 2 . . . . . . 1 . . . . . . . . . . . . . . . . link_complan 1 | . . . . . . . . . . . . . . . . 1 . . . . . . . . . . . . . . . . . . . . . . . broadcast_data 1 | . . . . . . . . . . . . . . 1 . . . . . . . . . . . . . . . . . . . . . . . . . disrupt_area 2 | . . . . . . . . . . . . . . . . . . . . . . . . 1 . 1 . . . . . . . . . . . . . spike_heat 3 | . . . . . . . . . . . . . . . . 2 . . . 1 . . . . . . . . . . . . . . . . . . . overload_power 2 | . . . . . . . . . . . . . . . . 1 . . . . . . . . . . . . . . . . . 1 . . . . . amplify_resonance 2 | . . . . . . . . . . . . . . . . . 2 . . . . . . . . . . . . . . . . . . . . . . wipe_record 1 | . . . . . . . . . . 1 . . . . . . . . . . . . . . . . . . . . . . . . . . . . . disable_weapons 3 | . . . . . . . . . . . . . . 2 . . . . . . . . . . 1 . . . . . . . . . . . . . . reboot_system 4 | . . . . . . . . . . . . . . . . . . . . 1 . . . 1 . . . . . . . . 2 . . . . . . overwrite_iff 10 | . . . . . . . . . . 2 . . . . 1 . . . . 1 . . . . 1 . 1 . . . . . 3 . 1 . . . . streamctrl_high 2 | . . . . . . . . . . . . . . . . . . . . . . . 1 . . 1 . . . . . . . . . . . . . formatsys_low 8 | . . . . . . . . . 1 . . . 1 . . . . . 2 . . . 2 . 1 . . . . . . . . . 1 . . . . formatsys_high 93 | . . . . . . . . . . 7 . . 2 3 1 8 4 . . 12 . 16 4 14 5 8 . . . 1 1 . . 3 4 . . . . Relay Couplers Released 164 | . . . . . . . . 6 . 19 . . . 17 . 18 . . . 20 . 14 4 18 1 17 . . . . 3 4 . 17 . . 6 . . Machine Destruction 153 | . . . . . . . . 6 . 19 . . . 17 . 18 . . . 20 . 14 . 18 1 17 . . . . . . . 17 . . 6 . . Programmers 11 | . . . . . . . . . . . . . . . . . . . . . . . 4 . . . . . . . 3 4 . . . . . . . Attached 83 | . . . . . . . . . 2 4 . 1 2 3 1 6 4 1 1 8 1 11 4 13 2 7 . . . . 1 . 4 4 1 1 1 . . Fabnet Peak Effective % . | . . . . . . . . . . . . . . . . . . . . . . . . . . . . . . . . . . . . . . . . Robots Rewired 29 | . . . . . . . . . . 6 . . . . . . 5 . . . . . . 7 . . 11 . . . . . . . . . . . . Allies Hacked 4 | . . . . . . . . . . . . . . . . . 1 . . . 2 . . . . . 1 . . . . . . . . . . . . Hacks Repelled 1 | . . . . . . . . . . . . . 1 . . . . . . . . . . . . . . . . . . . . . . . . . . Allies | -11 -10 -10 -9 -9 -9 -8 -8 -8 -8 -8 -7 -7 -7 -7 -7 -7 -6 -6 -6 -6 -6 -6 -5 -5 -4 -4 -4 -4 -4 -4 -3 -3 -3 -3 -2 -2 -1 -1 -1 -------- Run | Scr Mat Min Mat Min Exi Min Mat Gar Mat Gar Fac Was Fac Gar Fac Gar Fac Was Fac Gar Fac Gar Fac Gar Fac Gar Ext Cet Arc Hub Res Qua Sec Gar Res Tes Acc Com Ac0 Total Allies 207 | . . 2 . . . . . . 1 18 . 18 3 3 3 10 13 . 2 15 . 19 10 22 7 10 23 5 . 2 1 . 6 6 7 1 . . . Largest Group 26 | . . 2 . . . . . . 1 13 13 18 18 8 3 5 8 8 8 10 10 26 26 16 16 7 23 14 3 2 1 . 3 5 10 1 . . . Highest-Rated Group 991 | . . 50 . . . . . . 10 169 169 444 444 205 58 141 245 245 245 257 257 754 756 539 666 351 991 932 236 185 137 . 90 315 598 45 . . . Highest-Rated Ally 159 | . . 31 . . . . . . 10 16 16 35 35 34 32 32 41 40 40 47 47 47 49 49 58 116 159 159 96 96 137 . 30 116 116 45 . . . Total Orders 242 | . . . . . . . . . 7 8 . . . 8 . 13 . 12 3 55 5 39 5 17 7 12 8 2 2 . . . . 9 18 12 . . . STAY 142 | . . . . . . . . . 4 4 . . . 4 . 7 . 10 1 37 2 23 2 11 2 8 4 1 1 . . . . 5 9 7 . . . FOLLOW 90 | . . . . . . . . . 3 4 . . . 4 . 6 . 2 1 15 3 14 1 6 3 4 4 1 1 . . . . 4 9 5 . . . AID 10 | . . . . . . . . . . . . . . . . . . . 1 3 . 2 2 . 2 . . . . . . . . . . . . . . Ally Attacks 1429 | . . 11 . . . . . . . 20 113 . 154 24 16 52 75 . 71 65 54 5 169 24 114 60 134 131 3 28 17 . 13 24 52 . . . . Total Damage 37209 | . . 128 . . . . . . . 169 1287 . 2956 719 315 1383 2395 . 1344 1252 1230 123 4440 459 3502 1982 4075 4351 124 1205 555 . 181 1074 1960 . . . . Kills 265 | . . 4 . . . . . . . 3 12 . 23 8 1 9 25 . 11 8 12 1 39 4 24 18 20 19 . 6 3 . 2 5 8 . . . . Allies Corrupted 7 | . . . . . . . . . . . . . 1 . 1 . 1 . . . . . . . 2 . . . . 1 . . . . 1 . . . . Allies Melted 2 | . . . . . . . . . . . . . . . . . . . . . . . . . . . 1 . . 1 . . . . . . . . . Intel | -11 -10 -10 -9 -9 -9 -8 -8 -8 -8 -8 -7 -7 -7 -7 -7 -7 -6 -6 -6 -6 -6 -6 -5 -5 -4 -4 -4 -4 -4 -4 -3 -3 -3 -3 -2 -2 -1 -1 -1 ------- Run | Scr Mat Min Mat Min Exi Min Mat Gar Mat Gar Fac Was Fac Gar Fac Gar Fac Was Fac Gar Fac Gar Fac Gar Fac Gar Ext Cet Arc Hub Res Qua Sec Gar Res Tes Acc Com Ac0 Robot Analysis Total 8 | . 2 . 4 . . . . . . . . . . . . . . . . . . . . . . . . . . . . . . . . . 2 . . Derelict Logs Recovered 2 | . . 1 . 1 . . . . . . . . . . . . . . . . . . . . . . . . . . . . . . . . . . . Drone Launches . | . . . . . . . . . . . . . . . . . . . . . . . . . . . . . . . . . . . . . . . . Drone Recoveries . | . . . . . . . . . . . . . . . . . . . . . . . . . . . . . . . . . . . . . . . . Exploration | -11 -10 -10 -9 -9 -9 -8 -8 -8 -8 -8 -7 -7 -7 -7 -7 -7 -6 -6 -6 -6 -6 -6 -5 -5 -4 -4 -4 -4 -4 -4 -3 -3 -3 -3 -2 -2 -1 -1 -1 ------------- Run | Scr Mat Min Mat Min Exi Min Mat Gar Mat Gar Fac Was Fac Gar Fac Gar Fac Was Fac Gar Fac Gar Fac Gar Fac Gar Ext Cet Arc Hub Res Qua Sec Gar Res Tes Acc Com Ac0 Turns Passed 143692 | 66 1787 1005 8897 810 5190 943 6015 1993 6193 3828 1321 1450 634 3733 1233 4484 1355 923 824 10220 1294 6572 1959 6555 963 6449 3743 550 1170 1339 1703 8903 4243 4926 2074 4339 7503 15952 551 Spaces Moved 56443 | 41 693 479 2580 220 1395 153 2372 674 2602 1821 702 579 252 1936 404 1545 761 478 318 3429 487 3235 621 2814 312 3003 1274 228 482 550 609 3851 1355 2306 759 1745 1814 7398 166 Core 32 | 12 . . . . . . . . . . . . . . . . . . . . . . . . . . . . . . . . . . . . . . 20 Treads 43410 | 29 693 204 2559 220 1395 153 52 521 174 282 . 307 252 1936 304 1445 . 49 318 3429 487 3235 621 2814 312 3003 1274 228 482 550 609 3851 1234 2145 68 11 620 7398 146 Legs . | . . . . . . . . . . . . . . . . . . . . . . . . . . . . . . . . . . . . . . . . Wheels 12929 | . . 275 21 . . . 2320 153 2428 1539 702 272 . . 100 100 761 429 . . . . . . . . . . . . . . 117 152 691 1675 1194 . . Hover . | . . . . . . . . . . . . . . . . . . . . . . . . . . . . . . . . . . . . . . . . Flight . | . . . . . . . . . . . . . . . . . . . . . . . . . . . . . . . . . . . . . . . . Fastest Speed 50 | 50 160 145 145 320 240 320 135 240 150 120 135 135 240 160 215 165 135 150 240 160 240 160 240 170 250 166 240 160 160 160 160 160 155 158 175 180 210 160 50 Average Speed 206 | 135 202 185 319 320 330 404 185 247 201 175 146 191 240 165 251 260 153 164 240 264 240 180 243 200 250 186 240 204 160 176 187 177 209 187 189 191 221 171 146 Slowest Speed 560 | 160 240 240 560 320 560 560 410 326 405 245 150 240 240 240 350 345 180 240 240 320 240 240 250 250 250 250 325 240 160 240 240 240 240 317 237 250 246 246 160 Overloaded Moves . | . . . . . . . . . . . . . . . . . . . . . . . . . . . . . . . . . . . . . . . . Propulsion Burnouts . | . . . . . . . . . . . . . . . . . . . . . . . . . . . . . . . . . . . . . . . . Robots Hopped . | . . . . . . . . . . . . . . . . . . . . . . . . . . . . . . . . . . . . . . . . Cave-ins Triggered 1 | . . . . . . . . . . . . . . . . . . . . . . . . . . . . . . . . . . 1 . . . . . Teleports 6 | . . . . . . . . . . . . . . . . . . . . . . . . . . . . . . . . 3 2 . . . . 1 . Spacefolds 31 | . . . . . . . . . . . . . . . . . . . . . . . . . . . . . . . . . 2 4 . 25 . . . Exploration Rate (%) 62 | 4 81 97 96 50 88 45 94 51 93 83 20 97 12 91 13 82 21 96 13 99 15 99 17 90 10 96 86 73 97 63 15 96 67 100 20 90 40 96 17 Regions Visited 39 Branch Regions 13 Pre-discovered Areas 3 | . . 1 . 1 1 . . . . . . . . . . . . . . . . . . . . . . . . . . . . . . . . . . Known Exits Taken 16 | . . . . . . . 1 . 1 . . . 1 . 1 . . . 1 . 1 . 1 . 1 . . . 1 1 1 1 1 . 1 1 1 . . Unknown Exits Taken 10 | 1 1 1 1 1 1 1 . . . . . . . . . . . . . . . . . . . . 1 1 . . . . . . . . . 1 . Scrap Searched 5 | . . 3 . 1 . 1 . . . . . . . . . . . . . . . . . . . . . . . . . . . . . . . . . Spaces Dug 337 | . . . 15 . 1 . 7 . 12 1 9 . . 8 . 5 1 . 2 2 5 10 3 28 8 31 2 1 . 1 2 19 27 3 21 16 43 15 39 Terrain Destroyed 2555 | . 26 . 45 147 44 26 56 3 50 38 23 11 . 23 19 14 2 . 2 4 5 11 3 30 12 41 29 1 3 491 93 36 47 100 44 86 96 254 640 Melee 248 | . . . 6 . 1 . 3 . 12 1 9 . . . . . 1 . 2 2 5 10 3 28 . 28 2 1 . 1 2 18 27 3 21 16 32 13 1 Projectile 323 | . . . . 2 4 18 23 . 8 10 4 11 . 2 2 4 1 . . 2 . 1 . 2 12 13 27 . 2 11 9 13 19 10 5 4 5 69 30 AOE 1841 | . 26 . 39 145 38 7 30 3 30 26 10 . . 21 17 8 . . . . . . . . . . . . . 478 76 . . 87 . 50 14 130 606 Terrain Rammed . | . . . . . . . . . . . . . . . . . . . . . . . . . . . . . . . . . . . . . . . . Walls Destroyed . | . . . . . . . . . . . . . . . . . . . . . . . . . . . . . . . . . . . . . . . . Machines Disabled . | . . . . . . . . . . . . . . . . . . . . . . . . . . . . . . . . . . . . . . . . Actions | -11 -10 -10 -9 -9 -9 -8 -8 -8 -8 -8 -7 -7 -7 -7 -7 -7 -6 -6 -6 -6 -6 -6 -5 -5 -4 -4 -4 -4 -4 -4 -3 -3 -3 -3 -2 -2 -1 -1 -1 --------- Run | Scr Mat Min Mat Min Exi Min Mat Gar Mat Gar Fac Was Fac Gar Fac Gar Fac Was Fac Gar Fac Gar Fac Gar Fac Gar Ext Cet Arc Hub Res Qua Sec Gar Res Tes Acc Com Ac0 Total 79061 | 49 1009 551 3048 281 1778 405 3833 912 3420 2340 920 764 276 2348 574 1920 905 620 369 4413 586 3877 916 3571 437 3742 1788 293 812 813 974 5752 2341 2769 1244 2641 5030 10361 379 Wait 14417 | . 252 30 193 9 19 122 1215 105 611 139 125 25 12 181 118 82 58 119 31 612 64 462 123 417 50 446 210 18 213 135 209 1556 526 243 303 568 2733 2063 20 Move 56371 | 40 692 478 2579 219 1394 152 2371 673 2602 1820 702 578 252 1935 403 1544 761 477 318 3428 487 3234 621 2813 312 3002 1273 227 481 549 608 3850 1353 2299 758 1710 1813 7397 166 Hop . | . . . . . . . . . . . . . . . . . . . . . . . . . . . . . . . . . . . . . . . . Pick Up 952 | 3 13 7 38 8 53 18 37 21 22 64 5 6 1 42 5 64 5 6 . 68 . 25 9 34 5 50 18 1 30 8 12 59 37 42 5 36 19 66 10 Fast Attach 445 | 6 1 . 14 . 42 5 12 2 6 9 4 5 . 14 3 11 5 2 3 9 2 3 4 24 6 17 26 11 5 8 4 26 32 5 7 39 18 51 4 Attach 369 | . . 2 9 5 17 10 15 8 6 11 4 2 1 8 . 12 4 2 . 11 1 9 6 7 3 10 13 1 3 5 11 26 33 5 8 26 21 45 9 Detach 331 | . . . 4 . 48 9 11 7 6 10 2 1 1 9 . 12 1 1 . 14 . 5 1 16 3 11 8 . 1 4 3 19 18 6 7 21 15 54 3 Swap 810 | . 3 2 26 8 14 9 21 5 27 22 24 9 4 24 13 24 18 1 1 29 8 29 30 31 9 15 28 8 4 19 31 68 62 23 26 40 25 46 24 Drop 1128 | . 1 1 38 5 52 19 37 22 21 66 9 13 . 45 3 65 4 12 2 67 . 18 9 42 3 58 45 17 34 15 3 70 45 44 10 71 36 113 13 Fire 2918 | . 44 22 41 27 108 24 54 57 16 97 33 121 5 73 27 86 44 . 9 106 17 45 97 73 43 72 138 8 41 64 83 36 125 37 80 89 298 450 128 Melee 1033 | . . 7 81 . 30 36 60 . 101 46 12 4 . 17 2 . 5 . 4 45 5 46 7 62 . 47 14 2 . 2 2 42 108 47 39 41 52 65 2 Ram . | . . . . . . . . . . . . . . . . . . . . . . . . . . . . . . . . . . . . . . . . Kick . | . . . . . . . . . . . . . . . . . . . . . . . . . . . . . . . . . . . . . . . . Crush 61 | . 3 2 25 . . 1 . . 1 1 . . . . . . . . . . 2 . 8 . 3 . . . . 4 8 . 2 . . . . 1 . Escape Stasis 184 | . . . . . . . . 12 . 52 . . . . . 20 . . . 24 . 1 . 28 . 14 6 . . . . . . 17 . . . 10 . Rewire 42 | . . . . . 1 . . . 1 3 . . . . . . . . 1 . . . 1 24 . . 9 . . . . . . 1 1 . . . . Trap . | . . . . . . . . . . . . . . . . . . . . . . . . . . . . . . . . . . . . . . . . Miscellaneous . | . . . . . . . . . . . . . . . . . . . . . . . . . . . . . . . . . . . . . . . . Route ------- -11/Scrapyard -10/Materials (discovered 3 exits: *Mat / [*Min x2]) -10/Mines (discovered 2 exits: *Mat x2) -9/Materials (discovered 6 exits: *Mat x3 / *Min / [*Sto x2]) -9/Mines -9/Exiles (discovered 2 exits: [*Min x2]) -8/Mines (discovered 2 exits: *Mat x2) -8/Materials (discovered 3 exits: *Fac x2 / Gar) -8/Garrison -8/Materials (discovered 4 exits: *Fac x3 / Gar) -8/Garrison (discovered 3 exits: *Fac x3) -7/Factory -7/Waste -7/Factory (discovered 2 exits: *Fac / Gar) -7/Garrison (discovered 3 exits: *Fac x3) -7/Factory (discovered 2 exits: *Fac / Gar) -7/Garrison (discovered 3 exits: *Fac x3) -6/Factory -6/Waste -6/Factory -6/Garrison (discovered 3 exits: *Fac x3) -6/Factory -6/Garrison (discovered 3 exits: *Fac x3) -5/Factory (discovered 2 exits: [*Upp] / Gar) -5/Garrison (discovered 3 exits: *Fac x3) -4/Factory -4/Garrison (discovered 3 exits: *Ext x3) -4/Extension (discovered 2 exits: *Res / *Cet) -4/Cetus (discovered 2 exits: *Res / [*Arc]) -4/Archives (discovered 3 exits: *Res / *Hub x2) -4/Hub_04(d) (discovered 2 exits: *Res x2) -3/Research -3/Quarantine (discovered 2 exits: *Res / *Sec) -3/Section 7 (discovered 2 exits: *Res / Gar) -3/Garrison (discovered 3 exits: *Res x3) -2/Research (discovered 2 exits: *Tes x2) -2/Testing -1/Access -1/Command (discovered 3 exits: [*Sur x2] / [*Ac0]) -1/Access_0 History --------- Turn | Location | Event 16 | -11/Scrapyard | Discovered new exit (range 16) 67 | -11/Scrapyard | Entered Materials 317 | -10/Materials | Build established: Mutant 326 | -10/Materials | Destroyed 7 combat bots 330 | -10/Materials | Discovered new exit (range 6) 455 | -10/Materials | Discovered new exit (range 5) 929 | -10/Materials | Discovered new exit (range 15) 1854 | -10/Materials | Entered Mines 2331 | -10/Mines | Discovered new exit (range 15) 2470 | -10/Mines | Discovered new exit (range 6) 2473 | -10/Mines | Learned location of Storage (-9) 2585 | -10/Mines | Learned Materials non-interactive machine intel 2859 | -10/Mines | Entered Materials 2859 | -9/Materials | Evolved 2 slots: Utility x2 2860 | -9/Materials | Loaded intel: 38 non-interactive machine locations 3999 | -9/Materials | Discovered new exit (range 16) 4030 | -9/Materials | Build established: Scavenger-Mutant 4465 | -9/Materials | Lost 3 parts (1p2u) 5418 | -9/Materials | Discovered new exit (range 7) 6164 | -9/Materials | Discovered new exit (range 15) 6451 | -9/Materials | Discovered new exit (range 15) 6677 | -9/Materials | Discovered new exit (range 8) 7386 | -9/Materials | Discovered new exit (range 7) 8314 | -9/Materials | Repaired Hrd. Light Armor Plating 9726 | -9/Materials | Repaired Huge Storage Unit 10421 | -9/Materials | Build established: Mutant 11756 | -9/Materials | Entered Mines 11933 | -9/Mines | Assembled infested the area 12127 | -9/Mines | Met a Derelict shopkeep closing up shop 12400 | -9/Mines | Joined a pair of Derelicts in attacking an 0b10 outpost 12553 | -9/Mines | Deemed a non-threat by the Exiles lab entrance 12553 | -9/Mines | Discovered new exit (range 5) 12566 | -9/Mines | Entered Exiles 12611 | -9/Exiles | Discovered new exit (range 15) 12793 | -9/Exiles | Met 8R-AWN 12827 | -9/Exiles | Met EX-HEX 12896 | -9/Exiles | Met EX-BIN 12932 | -9/Exiles | Aligned with FarCom system 12935 | -9/Exiles | Given EX-Vault access code 12997 | -9/Exiles | Opened EX-Vault 13007 | -9/Exiles | Found Prototype Slashing Weapon 13007 | -9/Exiles | Identified Longsword +1 13020 | -9/Exiles | Found Superbattery 13028 | -9/Exiles | Found Gui. Plasma Cannon 13079 | -9/Exiles | Warned to stay clear of 0b10 Research branches 13379 | -9/Exiles | Met EX-DEC 13425 | -9/Exiles | Learned location of Zion (-6) 13733 | -9/Exiles | Attacked by the Exiles 13809 | -9/Exiles | Destroyed 8R-AWN 13828 | -9/Exiles | Found Prototype Device 13828 | -9/Exiles | Identified AS-neutralizer No. 17b 13832 | -9/Exiles | Lost 5 parts (1p1n2u1w) 13842 | -9/Exiles | Found Prototype Ballistic Gun 13842 | -9/Exiles | Identified 8R-AWN's Boregun 13847 | -9/Exiles | Found 8R-AWN's Boregun 14315 | -9/Exiles | Build established: Scavenger-Mutant 14574 | -9/Exiles | Destroyed EX-DEC 14710 | -9/Exiles | Found Prototype Processor 14713 | -9/Exiles | Found Deploy-a-Sentry 14804 | -9/Exiles | Destroyed EX-BIN 15016 | -9/Exiles | Destroyed EX-HEX 15061 | -9/Exiles | Found Prototype Device 15061 | -9/Exiles | Identified System Purifier 15830 | -9/Exiles | Build established: Hauler-Mutant 16229 | -9/Exiles | Found Prototype Processor 17684 | -9/Exiles | Discovered new exit (range 12) 17756 | -9/Exiles | Stole four prototypes: Superbattery, Gui. Plasma Cannon, Longsword +1, Deploy-a-Sentry 17756 | -9/Exiles | Entered Mines 17880 | -8/Mines | 7V-RTL came to Exiles' defense 17905 | -8/Mines | Core integrity fell below 50% 17964 | -8/Mines | Lost 4 parts (2n2u) 17981 | -8/Mines | Destroyed 7V-RTL 17987 | -8/Mines | Found Prototype Device 17987 | -8/Mines | Identified 7V-RTL's Ultimate Field 18052 | -8/Mines | Found Adv. Powered Armor 18057 | -8/Mines | Found Adv. Powered Armor 18575 | -8/Mines | Discovered new exit (range 16) 18686 | -8/Mines | Discovered new exit (range 3) 18699 | -8/Mines | Entered Materials 18699 | -8/Materials | Evolved 2 slots: Propulsion x2 20853 | -8/Materials | Build established: Scavenger-Mutant 21237 | -8/Materials | Identified Exp. Core Analyzer 21237 | -8/Materials | Identified Exp. Targeting Computer 21395 | -8/Materials | Repaired Arm. Heavy Treads 21435 | -8/Materials | Build established: Hacker-Mutant 21500 | -8/Materials | Repaired Broken Rnf. Quantum Reactor 21786 | -8/Materials | Discovered new exit (range 10) 21975 | -8/Materials | Build established: Scavenger-Mutant 22472 | -8/Materials | Discovered new exit (range 4) 23119 | -8/Materials | Repaired Adv. Powered Armor 23522 | -8/Materials | Build established: Hauler-Mutant 23685 | -8/Materials | Repaired Arm. Heavy Treads 23755 | -8/Materials | Repaired Adv. Weapon Cycler 23834 | -8/Materials | Build established: Scavenger-Mutant 24158 | -8/Materials | Build established: Hauler-Mutant 24252 | -8/Materials | Identified exit to Garrison 24714 | -8/Materials | Entered Garrison 24726 | -8/Garrison | Installed Relay Interface Framework 24882 | -8/Garrison | Triggered checkpoint 24962 | -8/Garrison | Garrison Relay disabled 25042 | -8/Garrison | Build established: Mutant 25071 | -8/Garrison | Triggered checkpoint 25094 | -8/Garrison | Destroyed 7 combat bots 25403 | -8/Garrison | Triggered checkpoint 25438 | -8/Garrison | Discovered new exit (range 15) 25464 | -8/Garrison | Build established: Scavenger-Mutant 26004 | -8/Garrison | Triggered checkpoint 26044 | -8/Garrison | Garrison Relay disabled 26645 | -8/Garrison | Build established: Hauler-Mutant 26707 | -8/Garrison | Entered Materials 27737 | -8/Materials | Discovered new exit (range 11) 28553 | -8/Materials | Build established: Mutant 29104 | -8/Materials | Discovered new exit (range 16) 29641 | -8/Materials | Build established: Hacker-Mutant 30092 | -8/Materials | Discovered new exit (range 3) 30516 | -8/Materials | Repaired Broken Exp. Cooling System 30658 | -8/Materials | Repaired Broken System Purifier 31515 | -8/Materials | Build established: Hauler-Mutant 32900 | -8/Materials | Identified exit to Garrison 32900 | -8/Materials | Entered Garrison 32912 | -8/Garrison | Expanded RIF knowledge: Command Fork 33020 | -8/Garrison | Triggered checkpoint 33081 | -8/Garrison | Garrison Relay disabled 33182 | -8/Garrison | Triggered checkpoint 33250 | -8/Garrison | Build established: Scavenger-Mutant 33446 | -8/Garrison | Discovered new exit (range 8) 33542 | -8/Garrison | Triggered checkpoint 33718 | -8/Garrison | Garrison Relay disabled 33841 | -8/Garrison | Triggered checkpoint 33984 | -8/Garrison | Discovered new exit (range 13) 34014 | -8/Garrison | Build established: Bothacker-Mutant 34074 | -8/Garrison | Triggered checkpoint 34079 | -8/Garrison | Core integrity fell below 50% 34110 | -8/Garrison | Garrison Relay disabled 34292 | -8/Garrison | Triggered checkpoint 34334 | -8/Garrison | Triggered checkpoint 34361 | -8/Garrison | Triggered checkpoint 34458 | -8/Garrison | Garrison Relay disabled 34538 | -8/Garrison | Garrison Relay disabled 34670 | -8/Garrison | Triggered checkpoint 34671 | -8/Garrison | Discovered new exit (range 9) 34976 | -8/Garrison | Triggered checkpoint 35279 | -8/Garrison | Build established: Commander-Mutant 36728 | -8/Garrison | Entered Factory 36728 | -7/Factory | Accompanied by 13 allies 36728 | -7/Factory | Evolved 2 slots: Utility x2 37133 | -7/Factory | P-60 Hacker assimilated allied Pest 3c 37140 | -7/Factory | P-60 Hacker assimilated allied Trooper 3g 37378 | -7/Factory | Build established: Bothacker-Mutant 37683 | -7/Factory | Discovered new exit (range 5) 37689 | -7/Factory | Identified exit to Factory 37836 | -7/Factory | Destroyed 7 combat bots 38049 | -7/Factory | Sucked down chute 38049 | -7/Factory | Entered Waste 38075 | -7/Waste | Spotted C-40 Crusher 38089 | -7/Waste | Spotted C-40 Crusher 38089 | -7/Waste | Spotted C-40 Crusher 38102 | -7/Waste | Spotted C-40 Crusher 38118 | -7/Waste | Spotted C-40 Crusher 38144 | -7/Waste | Spotted C-40 Crusher 38264 | -7/Waste | Discovered new exit (range 14) 38464 | -7/Waste | Destroyed C-40 Crusher 38519 | -7/Waste | Destroyed C-40 Crusher 38573 | -7/Waste | Destroyed C-40 Crusher 38831 | -7/Waste | Destroyed C-40 Crusher 38852 | -7/Waste | Destroyed C-40 Crusher 38858 | -7/Waste | Destroyed C-40 Crusher 39110 | -7/Waste | Warlord forces began an assault 39492 | -7/Waste | Identified exit to Factory 39499 | -7/Waste | Entered Factory 39499 | -7/Factory | Accompanied by 18 allies 39572 | -7/Factory | Discovered exit to Factory (range 11) 40038 | -7/Factory | Garrison activated, responded to threat 40102 | -7/Factory | Build established: Hauler-Mutant 40122 | -7/Factory | Identified exit to Garrison 40133 | -7/Factory | Entered Garrison 40133 | -7/Garrison | Accompanied by 7 allies 40242 | -7/Garrison | Triggered checkpoint 40269 | -7/Garrison | Garrison Relay disabled 40360 | -7/Garrison | Triggered checkpoint 40370 | -7/Garrison | Triggered checkpoint 40409 | -7/Garrison | Destroyed 9 combat bots 40445 | -7/Garrison | Build established: Bothacker-Mutant 40521 | -7/Garrison | Discovered new exit (range 11) 40631 | -7/Garrison | Triggered checkpoint 40653 | -7/Garrison | Garrison Relay disabled 41182 | -7/Garrison | Discovered new exit (range 10) 41199 | -7/Garrison | Identified exit to Factory 41211 | -7/Garrison | Expanded RIF knowledge: Threat Obfuscation 41329 | -7/Garrison | Garrison Relay disabled 41330 | -7/Garrison | Triggered checkpoint 41510 | -7/Garrison | Triggered checkpoint 41557 | -7/Garrison | Discovered exit to Factory (range 9) 41600 | -7/Garrison | Triggered checkpoint 41937 | -7/Garrison | Garrison Relay disabled 42233 | -7/Garrison | Garrison Relay disabled 43866 | -7/Garrison | Entered Factory 43866 | -7/Factory | Accompanied by 2 allies 43987 | -7/Factory | Repaired Broken Adv. Powered Armor 44149 | -7/Factory | Repaired Adv. Powered Armor 44235 | -7/Factory | P-60 Hacker assimilated allied Administrator 4a 44383 | -7/Factory | Repaired Broken Rnf. Quantum Reactor 44989 | -7/Factory | Core integrity fell below 50% 45054 | -7/Factory | Discovered exit to Factory (range 16) 45069 | -7/Factory | Identified exit to Garrison 45099 | -7/Factory | Entered Garrison 45370 | -7/Garrison | Triggered checkpoint 45448 | -7/Garrison | Garrison Relay disabled 45561 | -7/Garrison | Triggered checkpoint 45620 | -7/Garrison | Triggered checkpoint 45745 | -7/Garrison | Discovered exit to Factory (range 12) 45824 | -7/Garrison | Triggered checkpoint 45862 | -7/Garrison | Garrison Relay disabled 45964 | -7/Garrison | Triggered checkpoint 45992 | -7/Garrison | Triggered checkpoint 46085 | -7/Garrison | Discovered exit to Factory (range 9) 46164 | -7/Garrison | Triggered checkpoint 46172 | -7/Garrison | Garrison Relay disabled 46400 | -7/Garrison | Triggered checkpoint 46560 | -7/Garrison | Garrison Relay disabled 46734 | -7/Garrison | Discovered exit to Factory (range 14) 46777 | -7/Garrison | Expanded RIF knowledge: Program Shield 47085 | -7/Garrison | Build established: Botlord-Mutant 47868 | -7/Garrison | Build established: Bothacker-Mutant 49306 | -7/Garrison | Build established: Botlord-Mutant 49583 | -7/Garrison | Entered Factory 49583 | -6/Factory | Accompanied by 5 allies 49583 | -6/Factory | Evolved 2 slots: Utility x2 50056 | -6/Factory | Discovered new exit (range 12) 50635 | -6/Factory | Fabricated L-41 Fighter (x3) 50689 | -6/Factory | P-60 Hacker assimilated allied Fighter 5b 50900 | -6/Factory | Repaired Adv. Transmission Jammer 50938 | -6/Factory | Sucked down chute 50938 | -6/Factory | Entered Waste 50938 | -6/Waste | The area was eerily silent 50978 | -6/Waste | Build established: Bothacker-Mutant 51100 | -6/Waste | 8 allies followed down the chute 51240 | -6/Waste | Discovered new exit (range 12) 51605 | -6/Waste | Found Damper Plating 51861 | -6/Waste | Entered Factory 51861 | -6/Factory | Accompanied by 8 allies 52186 | -6/Factory | Repaired Adv. Powered Armor 52383 | -6/Factory | Fabricated Imp. Heavy Treads (x2) 52683 | -6/Factory | Identified exit to Garrison 52685 | -6/Factory | Entered Garrison 52685 | -6/Garrison | Accompanied by 8 allies 52876 | -6/Garrison | Triggered checkpoint 53116 | -6/Garrison | Garrison Relay disabled 53500 | -6/Garrison | Triggered checkpoint 53516 | -6/Garrison | Triggered checkpoint 53654 | -6/Garrison | Discovered new exit (range 10) 53692 | -6/Garrison | Expanded RIF knowledge: Robot Detection 53750 | -6/Garrison | Triggered checkpoint 53779 | -6/Garrison | Garrison Relay disabled 53915 | -6/Garrison | Triggered checkpoint 53994 | -6/Garrison | Build established: Botlord-Mutant 54262 | -6/Garrison | Discovered new exit (range 15) 54468 | -6/Garrison | Discovered new exit (range 8) 54666 | -6/Garrison | Triggered checkpoint 54818 | -6/Garrison | Garrison Relay disabled 55341 | -6/Garrison | Garrison Relay disabled 55808 | -6/Garrison | Triggered checkpoint 56807 | -6/Garrison | Spotted B-75 Beast 56814 | -6/Garrison | Garrison Relay disabled 58099 | -6/Garrison | Destroyed B-75 Beast 58735 | -6/Garrison | Build established: Commander-Mutant 62905 | -6/Garrison | Entered Factory 62905 | -6/Factory | Accompanied by 10 allies 62933 | -6/Factory | Build established: Botlord-Mutant 63385 | -6/Factory | Repaired Adv. Powered Armor 63467 | -6/Factory | Repaired Adv. Powered Armor 64197 | -6/Factory | Identified exit to Garrison 64199 | -6/Factory | Entered Garrison 64199 | -6/Garrison | Accompanied by 7 allies 64558 | -6/Garrison | Build established: Bothacker-Mutant 64598 | -6/Garrison | Triggered checkpoint 64655 | -6/Garrison | Garrison Relay disabled 64766 | -6/Garrison | Triggered checkpoint 64956 | -6/Garrison | Build established: Botlord-Mutant 65468 | -6/Garrison | Triggered checkpoint 65473 | -6/Garrison | Triggered checkpoint 65719 | -6/Garrison | Build established: Commander-Mutant 65928 | -6/Garrison | Triggered checkpoint 65955 | -6/Garrison | Garrison Relay disabled 66035 | -6/Garrison | Discovered new exit (range 12) 66182 | -6/Garrison | Triggered checkpoint 66201 | -6/Garrison | Garrison Relay disabled 66243 | -6/Garrison | Discovered new exit (range 12) 66272 | -6/Garrison | Expanded RIF knowledge: Zone Cloak 66356 | -6/Garrison | Triggered checkpoint 66360 | -6/Garrison | Triggered checkpoint 66911 | -6/Garrison | Discovered new exit (range 15) 67008 | -6/Garrison | Triggered checkpoint 67261 | -6/Garrison | Garrison Relay disabled 67386 | -6/Garrison | Triggered checkpoint 70771 | -6/Garrison | Entered Factory 70771 | -5/Factory | Accompanied by 26 allies 70771 | -5/Factory | Evolved 2 slots: Power x1, Utility x1 71100 | -5/Factory | Discovered new exit (range 9) 71487 | -5/Factory | Garrison activated, responded to threat 71800 | -5/Factory | Build established: Botlord-Mutant 72062 | -5/Factory | Fabricated Arm. Heavy Treads (x2) 72226 | -5/Factory | Allied Derelicts emerged from ambush trap array 72728 | -5/Factory | Identified exit to Garrison 72730 | -5/Factory | Entered Garrison 72778 | -5/Garrison | Build established: Bothacker-Mutant 72864 | -5/Garrison | Triggered checkpoint 72897 | -5/Garrison | Garrison Relay disabled 73131 | -5/Garrison | Triggered checkpoint 73158 | -5/Garrison | Triggered checkpoint 73216 | -5/Garrison | Build established: Botlord-Mutant 73344 | -5/Garrison | Triggered checkpoint 73570 | -5/Garrison | Discovered new exit (range 11) 74137 | -5/Garrison | Build established: Bothacker-Mutant 74264 | -5/Garrison | Triggered checkpoint 74313 | -5/Garrison | Garrison Relay disabled 74777 | -5/Garrison | Build established: Botlord-Mutant 74986 | -5/Garrison | Triggered checkpoint 75002 | -5/Garrison | Discovered new exit (range 14) 75312 | -5/Garrison | Discovered new exit (range 10) 75349 | -5/Garrison | Expanded RIF knowledge: Threat Obfuscation 75658 | -5/Garrison | Triggered checkpoint 75732 | -5/Garrison | Garrison Relay disabled 75915 | -5/Garrison | Triggered checkpoint 76022 | -5/Garrison | Triggered checkpoint 76055 | -5/Garrison | Garrison Relay disabled 77010 | -5/Garrison | Build established: Commander-Mutant 79240 | -5/Garrison | Build established: Botlord-Mutant 79285 | -5/Garrison | Entered Factory 79285 | -4/Factory | Accompanied by 16 allies 79285 | -4/Factory | Evolved 2 slots: Propulsion x2 79371 | -4/Factory | Garrison activated, responded to threat 79733 | -4/Factory | Repaired Adv. Powered Armor 79785 | -4/Factory | First assault squad dispatched 80135 | -4/Factory | Spotted B-86 Titan 80162 | -4/Factory | Cargo convoy interrupted 80248 | -4/Factory | Identified exit to Garrison 80248 | -4/Factory | Entered Garrison 80248 | -4/Garrison | Accompanied by 1 ally 80366 | -4/Garrison | Triggered checkpoint 80474 | -4/Garrison | Garrison Relay disabled 80641 | -4/Garrison | Spotted B-86 Titan 80666 | -4/Garrison | Triggered checkpoint 80672 | -4/Garrison | Hijacked Titan 7a control node with streamctrl_high 80686 | -4/Garrison | Triggered checkpoint 80695 | -4/Garrison | Triggered checkpoint 80707 | -4/Garrison | Triggered checkpoint 80907 | -4/Garrison | Destroyed Titan 7a 81101 | -4/Garrison | Discovered new exit (range 9) 81235 | -4/Garrison | Garrison Relay disabled 81423 | -4/Garrison | Discovered new exit (range 10) 81677 | -4/Garrison | Triggered checkpoint 81711 | -4/Garrison | Garrison Relay disabled 81959 | -4/Garrison | Discovered new exit (range 5) 81977 | -4/Garrison | Expanded RIF knowledge: Coupler Efficiency 82150 | -4/Garrison | Triggered checkpoint 82311 | -4/Garrison | Garrison Relay disabled 84907 | -4/Garrison | Found Antimissile System 86697 | -4/Garrison | Entered Extension 86697 | -4/Extension | Accompanied by 7 allies 87197 | -4/Extension | First assault squad dispatched 87492 | -4/Extension | Destroyed 16 combat bots 87950 | -4/Extension | Rescued a captive Derelict 87980 | -4/Extension | Rescued a captive Derelict 87982 | -4/Extension | Rescued a captive Derelict 88015 | -4/Extension | Rescued a captive Derelict 88015 | -4/Extension | Rescued a captive Derelict 88618 | -4/Extension | Build established: Commander-Mutant 88796 | -4/Extension | Spotted B-86 Titan 88801 | -4/Extension | Allies destroyed B-86 Titan 88807 | -4/Extension | Spotted B-86 Titan 88833 | -4/Extension | Allies destroyed B-86 Titan 89095 | -4/Extension | Rescued a captive Derelict 89095 | -4/Extension | Rescued a captive Derelict 89112 | -4/Extension | Build established: Botlord-Mutant 89177 | -4/Extension | Rescued a captive Derelict 89180 | -4/Extension | Rescued a captive Derelict 89250 | -4/Extension | Discovered new exit (range 10) 89253 | -4/Extension | Discovered new exit (range 6) 89745 | -4/Extension | Rescued A7 90440 | -4/Extension | Entered Cetus 90440 | -4/Cetus | Accompanied by 14 allies (A7) 90445 | -4/Cetus | Acquired a Cetus Manufacturing Module code from A7 90467 | -4/Cetus | Spotted Cetus Guard 90472 | -4/Cetus | Spotted Cetus Guard 90472 | -4/Cetus | Spotted Cetus Guard 90473 | -4/Cetus | Allies destroyed Cetus Guard 90473 | -4/Cetus | Spotted Cetus Guard 90480 | -4/Cetus | Allies destroyed Cetus Guard 90490 | -4/Cetus | Allies destroyed Cetus Guard 90492 | -4/Cetus | Allies destroyed Cetus Guard 90607 | -4/Cetus | Started Cetus Manufacturing Module 90632 | -4/Cetus | Manufactured an Enhanced Grunt 90637 | -4/Cetus | Escorted A7 to Cetus Mainframe 90657 | -4/Cetus | Manufactured an Enhanced Grunt 90682 | -4/Cetus | Manufactured an Enhanced Grunt 90695 | -4/Cetus | Discovered new exit (range 16) 90707 | -4/Cetus | Manufactured an Enhanced Grunt 90731 | -4/Cetus | Spotted Cetus Guard 90731 | -4/Cetus | Spotted Cetus Guard 90732 | -4/Cetus | Manufactured an Enhanced Grunt 90734 | -4/Cetus | Spotted Cetus Guard 90734 | -4/Cetus | Spotted Cetus Guard 90743 | -4/Cetus | Destroyed Cetus Guard 90749 | -4/Cetus | Allies destroyed Cetus Guard 90752 | -4/Cetus | Allies destroyed Cetus Guard 90753 | -4/Cetus | Allies destroyed Cetus Guard 90759 | -4/Cetus | Discovered new exit (range 16) 90767 | -4/Cetus | Extracted ID and sensor layout for unrecognized location from A7's data core 90782 | -4/Cetus | Met Revision 17 90791 | -4/Cetus | System corruption reached 10% 90990 | -4/Cetus | Entered Archives 90990 | -4/Archives | Accompanied by 3 allies 91238 | -4/Archives | Discovered new exit (range 15) 91528 | -4/Archives | Discovered new exit (range 15) 91581 | -4/Archives | Discovered new exit (range 16) 92154 | -4/Archives | Identified exit to Hub_04(d) 92160 | -4/Archives | Entered Hub_04(d) 92160 | -4/Hub_04(d) | Accompanied by 2 allies 92350 | -4/Hub_04(d) | Build established: Bothacker-Mutant 92943 | -4/Hub_04(d) | Discovered new exit (range 13) 92981 | -4/Hub_04(d) | Identified exit to Research 92999 | -4/Hub_04(d) | Discovered exit to Research (range 7) 93145 | -4/Hub_04(d) | Network Hub disabled 93156 | -4/Hub_04(d) | Spotted Lightning 93158 | -4/Hub_04(d) | Spotted Lightning 93171 | -4/Hub_04(d) | Destroyed Lightning 93183 | -4/Hub_04(d) | Destroyed Lightning 93184 | -4/Hub_04(d) | Spotted Lightning 93189 | -4/Hub_04(d) | Destroyed Lightning 93215 | -4/Hub_04(d) | Found Prototype Device 93215 | -4/Hub_04(d) | Identified Exp. Phase Shifter 93243 | -4/Hub_04(d) | Found Prototype Energy Cannon 93243 | -4/Hub_04(d) | Identified EMDS 93263 | -4/Hub_04(d) | Found Prototype Processor 93263 | -4/Hub_04(d) | Identified Exp. Targeting Computer 93426 | -4/Hub_04(d) | Network Hub disabled 93426 | -4/Hub_04(d) | Network Hub disabled 93443 | -4/Hub_04(d) | Build established: Scavenger-Mutant 93460 | -4/Hub_04(d) | Spotted Lightning 93461 | -4/Hub_04(d) | Spotted Lightning 93466 | -4/Hub_04(d) | Spotted Lightning 93499 | -4/Hub_04(d) | Entered Research 93499 | -3/Research | Evolved 2 slots: Weapon x2 93554 | -3/Research | Repaired Adv. Powered Armor 93566 | -3/Research | Repaired System Purifier 93620 | -3/Research | Repaired Centrium Heavy Treads? 93644 | -3/Research | Imp. Hacking Suite fried by hacking feedback 93749 | -3/Research | First assault squad dispatched 94276 | -3/Research | Cargo convoy interrupted 94279 | -3/Research | Spotted Striker 94279 | -3/Research | Spotted Striker 94283 | -3/Research | Destroyed Striker 94283 | -3/Research | Destroyed Striker 94288 | -3/Research | System corruption reached 10% 94324 | -3/Research | Destroyed 11 combat bots 94839 | -3/Research | Repaired System Purifier? 94935 | -3/Research | Repaired Centrium Heavy Treads 94990 | -3/Research | Repaired Centrium Heavy Treads 95189 | -3/Research | Discovered new exit (range 9) 95201 | -3/Research | Identified exit to Quarantine 95202 | -3/Research | Entered Quarantine 95426 | -3/Quarantine | Discovered new exit (range 11) 95442 | -3/Quarantine | Identified exit to Research 95452 | -3/Quarantine | First assault squad dispatched 95463 | -3/Quarantine | Cryocooling Duct disabled 95466 | -3/Quarantine | Cryocooling Duct disabled 95478 | -3/Quarantine | Ambient heat levels rising (+20) 95478 | -3/Quarantine | Non-combat units ordered to evacuate 95481 | -3/Quarantine | Ambient heat levels rising (+20) 95481 | -3/Quarantine | Combat units ordered to evacuate 95581 | -3/Quarantine | Quarantine Guard activated 95804 | -3/Quarantine | Spotted Quarantine Guard 95805 | -3/Quarantine | Destroyed Quarantine Guard 96093 | -3/Quarantine | Spotted Quarantine Guard 96109 | -3/Quarantine | Spotted Quarantine Guard 96114 | -3/Quarantine | Destroyed Quarantine Guard 96122 | -3/Quarantine | Destroyed Quarantine Guard 96324 | -3/Quarantine | Found Alien Slashing Weapon 96324 | -3/Quarantine | Identified Sigix Broadsword 96535 | -3/Quarantine | Destroyed Quarantine Guard 96579 | -3/Quarantine | Spotted Quarantine Guard 96588 | -3/Quarantine | Destroyed Quarantine Guard 96767 | -3/Quarantine | Spotted Quarantine Guard 96806 | -3/Quarantine | Destroyed Quarantine Guard 96934 | -3/Quarantine | Spotted Quarantine Guard 96950 | -3/Quarantine | Destroyed Quarantine Guard 96999 | -3/Quarantine | Spotted Quarantine Guard 97038 | -3/Quarantine | Spotted Quarantine Guard 97078 | -3/Quarantine | Destroyed Quarantine Guard 97419 | -3/Quarantine | Found Unknown Device 97419 | -3/Quarantine | Identified Quantum Capacitor 97557 | -3/Quarantine | Repaired System Purifier 98029 | -3/Quarantine | Found Alien Launcher 98029 | -3/Quarantine | Identified Sigix Terminator 98201 | -3/Quarantine | Central database locked down 98221 | -3/Quarantine | Spotted Quarantine Guard 98231 | -3/Quarantine | Destroyed Quarantine Guard 98386 | -3/Quarantine | Repaired Adv. Powered Armor 98971 | -3/Quarantine | Destroyed Quarantine Guard 99490 | -3/Quarantine | Found Alien Artifact 99508 | -3/Quarantine | Found Alien Artifact 99522 | -3/Quarantine | Found Alien Artifact 99685 | -3/Quarantine | Identified Terrabomb (x3) 99685 | -3/Quarantine | Used Terrabomb 99728 | -3/Quarantine | Used Terrabomb 99874 | -3/Quarantine | Used Terrabomb 100711 | -3/Quarantine | Repaired Centrium Heavy Treads 100767 | -3/Quarantine | Repaired Centrium Heavy Treads 100926 | -3/Quarantine | Repaired Exp. Cooling System 100972 | -3/Quarantine | Repaired Broken System Purifier 100994 | -3/Quarantine | Repaired Micro-nuke Launcher 101057 | -3/Quarantine | Found Alien Artifact 101200 | -3/Quarantine | Identified Core Reset Matrix 101292 | -3/Quarantine | Found Alien Artifact 101298 | -3/Quarantine | Found Alien Artifact 101311 | -3/Quarantine | Found Alien Artifact 101348 | -3/Quarantine | Identified Dimensional Node Initializer 101372 | -3/Quarantine | Identified Transdimensional Reconstructor 101372 | -3/Quarantine | Identified Hpw. Transdimensional Reconstructor 101428 | -3/Quarantine | Found Hpw. Transdimensional Reconstructor 101433 | -3/Quarantine | Found Hpw. Transdimensional Reconstructor 102076 | -3/Quarantine | Spotted Fortress 102079 | -3/Quarantine | Warped through subspace 102216 | -3/Quarantine | Build established: Bothacker-Mutant 102373 | -3/Quarantine | Warped through subspace 102626 | -3/Quarantine | Warped through subspace 103799 | -3/Quarantine | Build established: Botlord-Mutant 103896 | -3/Quarantine | Discovered new exit (range 5) 103896 | -3/Quarantine | Spotted Quarantine Guard 103946 | -3/Quarantine | Destroyed Quarantine Guard 103977 | -3/Quarantine | Identified exit to Section 7 104105 | -3/Quarantine | Entered Section 7 104762 | -3/Section 7 | Discovered exit to Research (range 9) 104797 | -3/Section 7 | Initialized slip node 104958 | -3/Section 7 | Build established: Bothacker-Mutant 104965 | -3/Section 7 | Found Integrated Reactor 104965 | -3/Section 7 | Installed Integrated Reactor, increased core energy generation (+10) 105056 | -3/Section 7 | Spotted S7 Guard 105093 | -3/Section 7 | Destroyed S7 Guard 105105 | -3/Section 7 | Found Corrupted Prototype Protection 105163 | -3/Section 7 | Found Core Membrane 105163 | -3/Section 7 | Installed Core Membrane, gained immunity to corruption 105165 | -3/Section 7 | Identified Hvy. Regenerative Plating 105331 | -3/Section 7 | Found Integrated Mediator 105331 | -3/Section 7 | Installed Integrated Mediator, increased core attachment efficiency. 105407 | -3/Section 7 | Found Spacefold Activator 105505 | -3/Section 7 | Build established: Scavenger-Mutant 105784 | -3/Section 7 | Warped through subspace to slip node 105866 | -3/Section 7 | Spotted S7 Guard 105879 | -3/Section 7 | Destroyed S7 Guard 106055 | -3/Section 7 | Lost 6 parts (1p4u1w) 106100 | -3/Section 7 | Destroyed 7 combat bots 106152 | -3/Section 7 | Found Alien Artifact 106167 | -3/Section 7 | Found Corrupted Hvy. Regenerative Plating 106484 | -3/Section 7 | Identified Core Regenerator 106573 | -3/Section 7 | Spotted Executioner 106573 | -3/Section 7 | Spotted Executioner 106742 | -3/Section 7 | Destroyed Executioner 106773 | -3/Section 7 | Destroyed Executioner 106779 | -3/Section 7 | Found Exp. Core Analyzer 106788 | -3/Section 7 | Found Prototype Device 106789 | -3/Section 7 | Identified Adv. Kinecellerator 106923 | -3/Section 7 | Found Hpw. Transdimensional Reconstructor 106926 | -3/Section 7 | Found Transdimensional Reconstructor 106930 | -3/Section 7 | Found Transdimensional Reconstructor 107128 | -3/Section 7 | Spotted Striker 107128 | -3/Section 7 | Spotted Striker 107211 | -3/Section 7 | Core integrity fell below 50% 107222 | -3/Section 7 | Destroyed Striker 107244 | -3/Section 7 | Destroyed Striker 107279 | -3/Section 7 | Found Alien Energy Cannon 107279 | -3/Section 7 | Identified Sigix Shearcannon 107795 | -3/Section 7 | Spotted B-99 Colossus 107869 | -3/Section 7 | Found Alien Artifact 107869 | -3/Section 7 | Identified Integrated Dissipator 107869 | -3/Section 7 | Installed Integrated Dissipator, increased core heat dissipation (+20) 107873 | -3/Section 7 | Found Integrated Dissipator 107873 | -3/Section 7 | Installed Integrated Dissipator, increased core heat dissipation (+20) 107876 | -3/Section 7 | Found Integrated Dissipator 107876 | -3/Section 7 | Installed Integrated Dissipator, increased core heat dissipation (+20) 107965 | -3/Section 7 | Found Alien Artifact 107965 | -3/Section 7 | Identified LRC Matter Compressor 107965 | -3/Section 7 | Installed LRC Matter Compressor, increased matter storage capacity (+125) 107968 | -3/Section 7 | Found Alien Artifact 107968 | -3/Section 7 | Identified LRC Boosters 107968 | -3/Section 7 | Installed LRC Boosters, increased mass support (+10) 108061 | -3/Section 7 | Warped through subspace to slip node 108348 | -3/Section 7 | Identified exit to Garrison 108348 | -3/Section 7 | Entered Garrison 108468 | -3/Garrison | Triggered checkpoint 108562 | -3/Garrison | Garrison Relay disabled 108878 | -3/Garrison | Build established: Bothacker-Mutant 108954 | -3/Garrison | Triggered checkpoint 108955 | -3/Garrison | Spotted B-86 Titan 108959 | -3/Garrison | Assimilated Titan 8a with formatsys_high 108992 | -3/Garrison | Triggered checkpoint 109030 | -3/Garrison | Triggered checkpoint 109196 | -3/Garrison | Discovered exit to Research (range 14) 109249 | -3/Garrison | Expanded RIF knowledge: Hotswap 109268 | -3/Garrison | Build established: Scavenger-Mutant 109332 | -3/Garrison | Triggered checkpoint 109363 | -3/Garrison | Garrison Relay disabled 109654 | -3/Garrison | Discovered exit to Research (range 11) 109676 | -3/Garrison | Build established: Botlord-Mutant 109794 | -3/Garrison | Triggered checkpoint 109883 | -3/Garrison | Garrison Relay disabled 109966 | -3/Garrison | Found Fusion Bomb Launcher 110182 | -3/Garrison | Triggered checkpoint 110264 | -3/Garrison | Garrison Relay disabled 110306 | -3/Garrison | Discovered exit to Research (range 10) 111167 | -3/Garrison | Crushed by falling debris 112380 | -3/Garrison | Build established: Scavenger-Mutant 112871 | -3/Garrison | Build established: Botlord-Mutant 113274 | -3/Garrison | Entered Research 113274 | -2/Research | Accompanied by 5 allies 113274 | -2/Research | Evolved 2 slots: Power x2 114053 | -2/Research | Build established: Generator-Mutant 114846 | -2/Research | Identified exit to Testing 115348 | -2/Research | Entered Testing 115409 | -2/Testing | Found Prototype Protection 115409 | -2/Testing | Identified Centrium Heavy Armor Plating 115823 | -2/Testing | Spotted PP-RX5GZPRGHG 116113 | -2/Testing | Fabricated Adv. Heavy Siege Treads? 116463 | -2/Testing | Found Prototype Reactor 116577 | -2/Testing | Central database locked down 116577 | -2/Testing | Identified exit to Access 116838 | -2/Testing | Found Prototype Energy Cannon 116848 | -2/Testing | Identified Imp. Potential Cannon 117249 | -2/Testing | Found Prototype Energy Cannon 117249 | -2/Testing | Identified Cld. Nova Cannon 117375 | -2/Testing | Found Prototype Ballistic Gun 117375 | -2/Testing | Identified Hyp. Multirail 117525 | -2/Testing | Spotted PP-MS2MJ3KUS2 117796 | -2/Testing | Found Prototype Device 117803 | -2/Testing | Found Prototype Device 117860 | -2/Testing | Found Vortex Chain Reactor 117890 | -2/Testing | Used Core Regenerator, restored core integrity (+312) 117893 | -2/Testing | Found Enh. Gamma Bomb Array 117999 | -2/Testing | Identified Beam Splitter (x2) 118099 | -2/Testing | Spotted Alpha 7 118123 | -2/Testing | Destroyed Alpha 7 118139 | -2/Testing | Found Prototype Device 118139 | -2/Testing | Identified Exp. ECM Suite 118168 | -2/Testing | Found Prototype Processor 118178 | -2/Testing | Found Exp. Targeting Computer 118754 | -2/Testing | Destroyed PP-RX5GZPRGHG 118763 | -2/Testing | Found Prototype Reactor 118763 | -2/Testing | Identified Zero-point Reactor 118773 | -2/Testing | Found Prototype Device 118773 | -2/Testing | Identified Exp. Weapon Cycler 118986 | -2/Testing | Found Prototype Processor 119005 | -2/Testing | Found Zero-point Reactor 119340 | -2/Testing | Found Prototype Energy Gun 119340 | -2/Testing | Identified Enh. Gamma Rifle 119463 | -2/Testing | Destroyed PP-MS2MJ3KUS2 119482 | -2/Testing | Found Prototype Processor 119482 | -2/Testing | Identified Exp. Target Analyzer (x3) 119487 | -2/Testing | Found Exp. Weapon Cycler 119510 | -2/Testing | Found Prototype Special Weapon 119510 | -2/Testing | Identified Gui. Remote Datajack 119687 | -2/Testing | Entered Access 119687 | -1/Access | Evolved 2 slots: Power x2 119967 | -1/Access | Identified exit to Command 120294 | -1/Access | Fabricated Singularity Reactor (x1) 120556 | -1/Access | Fabricated Singularity Reactor (x1) 120655 | -1/Access | Fabricated Exp. Terrain Scan Processor (x1) 121187 | -1/Access | First assault squad dispatched 121316 | -1/Access | Destroyed 13 combat bots 121776 | -1/Access | Found Unknown Protection 121776 | -1/Access | Identified Hvy. Reactive Plating 126257 | -1/Access | Sterilization system engaged 126557 | -1/Access | Ambient heat levels rising (+10) 126707 | -1/Access | Ambient heat levels rising (+10) 126857 | -1/Access | Ambient heat levels rising (+10) 127007 | -1/Access | Ambient heat levels rising (+10) 127157 | -1/Access | Ambient heat levels rising (+10) 127190 | -1/Access | Entered Command 127440 | -1/Command | First assault squad dispatched 128340 | -1/Command | Destroyed 8 combat bots 128441 | -1/Command | Spotted B-99 Colossus 128960 | -1/Command | Spotted Alpha 7 128960 | -1/Command | Spotted Striker 128969 | -1/Command | Spotted Executioner 128970 | -1/Command | Spotted Executioner 128975 | -1/Command | Destroyed Striker 128979 | -1/Command | Destroyed Executioner 128982 | -1/Command | High security lockdown imminent 128982 | -1/Command | Destroyed Executioner 128993 | -1/Command | Destroyed Alpha 7 129062 | -1/Command | High security lockdown engaged 129261 | -1/Command | Destroyed 14 combat bots 129276 | -1/Command | Destroyed Executioner 129281 | -1/Command | Destroyed Striker 129286 | -1/Command | Spotted Investigator 129287 | -1/Command | Scanned by Researcher 129301 | -1/Command | Destroyed Investigator 129325 | -1/Command | Destroyed 17 combat bots 129419 | -1/Command | Spotted Striker 129423 | -1/Command | Destroyed Striker 129452 | -1/Command | Spotted Executioner 129455 | -1/Command | Spotted Striker 129459 | -1/Command | Destroyed Striker 129471 | -1/Command | Destroyed Executioner 129501 | -1/Command | Destroyed 24 combat bots 129637 | -1/Command | Spotted Striker 129637 | -1/Command | Destroyed Striker 129646 | -1/Command | Destroyed Executioner 129647 | -1/Command | Spotted Executioner 129647 | -1/Command | Spotted Striker 129647 | -1/Command | Spotted Executioner 129649 | -1/Command | Destroyed Striker 129650 | -1/Command | Destroyed Executioner 129653 | -1/Command | Destroyed Executioner 129659 | -1/Command | Spotted Executioner 129659 | -1/Command | Spotted Executioner 129670 | -1/Command | Destroyed Executioner 129671 | -1/Command | Destroyed Executioner 129705 | -1/Command | Destroyed 29 combat bots 129863 | -1/Command | Spotted Striker 129863 | -1/Command | Spotted Striker 129864 | -1/Command | Destroyed Striker 129894 | -1/Command | Spotted Striker 129894 | -1/Command | Spotted Striker 129897 | -1/Command | Destroyed Striker 129899 | -1/Command | Destroyed Striker 129908 | -1/Command | Destroyed Executioner 129930 | -1/Command | Spotted Striker 129943 | -1/Command | Destroyed 30 combat bots 129970 | -1/Command | Found Prototype Launcher 129970 | -1/Command | Identified Containment Facilitator 130777 | -1/Command | Destroyed Striker 131059 | -1/Command | Destroyed Striker 131701 | -1/Command | Phase Generator disabled 132455 | -1/Command | Spotted M Guard 132455 | -1/Command | Spotted M Guard 132455 | -1/Command | Spotted Combat Programmer 132456 | -1/Command | Spotted Combat Programmer 132793 | -1/Command | Destroyed Combat Programmer 132799 | -1/Command | Destroyed Combat Programmer 132825 | -1/Command | Destroyed M Guard 132829 | -1/Command | Destroyed M Guard 132829 | -1/Command | All MAIN.C guards destroyed 132840 | -1/Command | Found Prototype Device 132840 | -1/Command | Identified AEGIS Remote Shield 132975 | -1/Command | Found Zero-point Reactor 132979 | -1/Command | Found Zero-point Reactor 133514 | -1/Command | Found Quantum Capacitor 134049 | -1/Command | Met MAIN.C 134073 | -1/Command | 0b10 Conduit disabled 134080 | -1/Command | Destroyed MAIN.C Shell 134081 | -1/Command | MAIN.C activated Command garrisons 134089 | -1/Command | Destroyed MAIN.C 134107 | -1/Command | Found Prototype Ballistic Cannon 134107 | -1/Command | Identified Omega Cannon 134111 | -1/Command | Discovered new exit (range 32) 134111 | -1/Command | Discovered new exit (range 100) 134111 | -1/Command | Extracted map data and part IDs from MAIN.C's data core 134121 | -1/Command | Found Exp. Targeting Computer 134125 | -1/Command | Found Zero-point Reactor 139661 | -1/Command | Found Vortex Chain Reactor 139664 | -1/Command | Found Vortex Chain Reactor 140670 | -1/Command | Found Exp. Force Field 140673 | -1/Command | Found Spectral Analyzer 140692 | -1/Command | Found Gamma Refractor 141051 | -1/Command | Found Exp. Targeting Computer 141711 | -1/Command | Found Exp. Core Analyzer 141727 | -1/Command | Found Exp. Core Analyzer 143135 | -1/Command | Warped through subspace to slip node 143135 | -1/Command | Discovered new exit (range 5) 143142 | -1/Command | Entered Access_0 143144 | -1/Access_0 | Met Architect 143153 | -1/Access_0 | Architect warped through subspace 143168 | -1/Access_0 | Destroyed A8 143237 | -1/Access_0 | Architect warped through subspace 143264 | -1/Access_0 | Architect warped through subspace 143303 | -1/Access_0 | Subspace Access Node disabled 143319 | -1/Access_0 | Architect warped through subspace 143324 | -1/Access_0 | Subspace Access Node disabled 143339 | -1/Access_0 | Architect warped through subspace 143361 | -1/Access_0 | Architect warped through subspace 143390 | -1/Access_0 | Architect warped through subspace 143406 | -1/Access_0 | Architect warped through subspace 143421 | -1/Access_0 | Architect warped through subspace 143437 | -1/Access_0 | Architect warped through subspace 143457 | -1/Access_0 | Architect warped through subspace 143506 | -1/Access_0 | Architect warped through subspace 143543 | -1/Access_0 | A6 warped into view 143566 | -1/Access_0 | Destroyed A6 143572 | -1/Access_0 | Architect warped through subspace 143587 | -1/Access_0 | Architect warped through subspace 143595 | -1/Access_0 | Architect warped through subspace 143610 | -1/Access_0 | Architect warped through subspace 143624 | -1/Access_0 | Subspace Access Node disabled 143652 | -1/Access_0 | Subspace Access Node disabled 143681 | -1/Access_0 | Destroyed Architect 143682 | -1/Access_0 | Architect triggered a singularity event 143683 | -1/Access_0 | Released all parts (15) 143690 | -1/Access_0 | Core integrity fell below 50% 143693 | -1/Access_0 | Crushed by singularity! Last Messages --------------- 43684_ Released Exp. Targeting Computer. 43684_ Released Exp. Power Amplifier. 43684_ Released Graphene Brace. 43684_ Released Imp. Potential Cannon. 43685_ A0_COM: 9. 43686_ A0_COM: 8. 43687_ A0_COM: 7. 43688_ A0_COM: 6. 43688_ HV Slug penetrates Wall. 43689_ A0_COM: 5. 43689_ Penetrated by HV Slug. 43689_ HV Slug penetrates Wall. 43690_ A0_COM: 4. 43690_ Penetrated by HV Slug. 43691_ A0_COM: 3. 43691_ Penetrated by HV Slug. 43692_ A0_COM: 2. 43692_ Penetrated by HV Slug. 43693_ A0_COM: 1. [Achievement: Back For More] Map ----- +----------------------------------------------------+ | ????????????????????????????????# ?????##??? ????? | | ??????????????????????????????#" ?????# ? ### | | ??????????????????????????????? "????? #?? | | ??????????????????????????????? ""??? ## | | ???????????????????????????????? ???" # | | ????????????????????????????????" ?#?" | | ???????????????????????????????## #"#" | | ????????????????????????????????" # " % | | ????????????????????????????????# # "" | | ???????????????????????????????## ""# | | ???????????????????????????????#"" | | ????????????????????????????????#" !! | | ????????????????????????????????#"!=!!/ | | ???????????????????????????????###!!*%!] | | ???????????????????????????????# #%==!!!" | | ????????????????????????????????# *!=*! "" | | ??????????????????????????????### *]!*! ## | | ??????????????????????????????# " * ## # | | ??????????????????????????????##" " # | | ????????????????????#??????????# " # | | ???????????? ??????? ???###???# " ## | | ???????????? ????# ?## ###?#"# # | | ??????????????# ### ## #??#"% # | | ??????????????# ###?#"% # | | ??????????????? ####"" # | | ??????????????????????# @ ;# " # | | ????????????????# # | | ????????????????# #### | | ????????????????# ### ## % #### | | ????????????????#????# #" #### | | ?????????????????????# ##" ; #### | | ?????????????????????# #### "" ;; !=!"""" | | ?????????????????????# ???# ##";## / !% | | ?????????????????????# #???# ####" !/! | | ????????????????????? ????# #?# ""#"### | | ????????????????????# #????# ??# " #### | | ????????????????????###?????# ??## " ##?## | | ????????????????????????????# ???# #??## | | ????????????????????????????# ???# ""#?#?# | | ????????????????????????????? ???# "#?#?# | | ????????????????????????????? ???#" ##???# | | ????????????????????????????????# ## ! "????# | | ????????????????????????????????##?# ????# | | ???????????????????????????????????" "##???# | | ??????????????????????????????????# ""#????# | | ?????????????????????????????????? ????? | | ?????????????????????????????????? ????# | | ???????????????????????????????????? "### ????? | | ??????????????????????????????????????##??? ????? | | ?????????????????????????????????????????????????? | +----------------------------------------------------+ Best States ------------- Heat Dissipation 150 Coolant Potential 120 Energy Generation 306 Energy Capacity 2100 Matter Stores 425 Matter Capacity 425 Sight Range 23 Robot Scan Range 16 Terrain Scan Range 24 Terrain Scan Density 1010 ECM Strength 3 Jamming Range 16 Power Amplification 80 Additional Mass Support 25 EM Shielding 4 Armor Coverage 3200 Resistance: KI 40 Resistance: EM 90 Core Shielding 30 Propulsion Shielding 66 Utility Shielding 66 Point Defense Rating 240 Weapon Cycling 30 Evasion (%) 50 Targeting Accuracy 12 Launcher Accuracy 20 Target Analysis 15 Core Analysis 12 Armor Integrity Analysis 40 Recoil Reduction 6 Kinecelleration 50 Offensive Hacking 36 Defensive Hacking 20 Relay Coupler Types 5 Relay Coupler Value 126 Authchip Count 2 Item Schematics ----------------- Cargo Storage Unit | -10/Materials | Hacked Hcp. Storage Unit | -9/Materials | Scanalyzed Cmb. Antigrav System | -8/Materials | Scanalyzed Arm. Heavy Treads | -8/Materials | Scanalyzed Rnf. Quantum Reactor | -8/Materials | Scanalyzed Exp. Power Amplifier | -8/Materials | Scanalyzed Signal Interpreter | -8/Materials | Hacked Railgun | -8/Materials | Scanalyzed Dispersion Rifle | -8/Materials | Scanalyzed Exp. Cooling System | -8/Materials | Scanalyzed System Purifier | -8/Materials | Scanalyzed Adv. Powered Armor | -7/Factory | Scanalyzed Ion Engine | -6/Factory | Hacked Exp. Terrain Scan Processor | -3/Quarantine | Hacked Adv. Heavy Siege Treads | -3/Quarantine | Hacked Exp. Hacking Suite | -3/Quarantine | Hacked Lgt. Particle Reactor | -3/Quarantine | Scanalyzed Exp. Energy Well | -3/Section 7 | Archive Singularity Reactor | -2/Testing | Hacked Point Singularity Launcher | -2/Testing | Archive Imp. Matter Neutralizer | -2/Testing | Archive Exp. Core Analyzer | -2/Testing | Archive Hvy. Wave Gun | -2/Testing | Archive Exp. Core Shielding | -2/Testing | Archive Tiamat Missile Launcher | -2/Testing | Archive Robot Schematics ------------------ G-73 Enforcer | -2/Testing | Archive T-07 Excavator | -2/Testing | Archive Fabricated ------------ L-41 Fighter | x3 | -6/Factory | Preloaded Imp. Heavy Treads | x2 | -6/Factory | Preloaded Arm. Heavy Treads | x2 | -5/Factory | Authchip Adv. Heavy Siege Treads | x2 | -2/Testing | Authchip Singularity Reactor | x1 | -1/Access | Authchip Singularity Reactor | x1 | -1/Access | Authchip Exp. Terrain Scan Processor | x1 | -1/Access Alien Tech Used ----------------- Sigix Broadsword Sigix Terminator Terrabomb Transdimensional Reconstructor High-powered Transdimensional Reconstructor Dimensional Node Initializer Integrated Reactor Core Membrane Integrated Mediator Spacefold Activator Sigix Shearcannon Integrated Dissipator LRC Matter Compressor LRC Boosters Core Regenerator Achievements -------------- Back For More Challenges ------------ None Game ------ Seed WeightEtherialKatana Manual? 1 Play Time 25:26:41 Cumulative 571.5 hours Start 2022.07.11 @ 01:08:08 End 2022.08.14 @ 18:33:56 Sessions 63 Manual Loads 0 Difficulty Rogue Special Mode None Game No. 50 Rogue 45 Adventurer 5 Explorer 0 Win Type - Total 22 Types 6/4/4/0/3/1/3/0/1 Lore% 84 Gallery% 92 Achievement% 82 Wizard Run 0 Options --------- ASCII 0 Keyboard 1 Movement Arrows Keybinds 0 Fullscreen 2 Font 18/SmallcapsGlow Map View 76x50 Tactical HUD 1 Map Filters NONE Filters NONE Steam 1 RUN: 3435f843-6a8c-4a2f-9c5b-7e14f6f5935f